{"text_format":"3","workbook":"xlsx","n_sheets":12,"sheets":["JANV.","FÉVR.","MARS","AVR.","MAI","JUIN","JUIL.","AOÛT","SEPT.","OCT.","NOV.","DÉC."],"not_rendered":{"defined_names":40},"read":"whole","date_system":"1900"}

{"sheet":"JANV.","index":0,"n_rows":20,"n_cols":9,"rows_kept":20,"merged":[[16,2,17,2],[16,3,17,3],[17,4,19,8]]}
[null,"JANV.","DIM",{"$f":"UPPER(TEXT(D3,\"jjj\"))","v":"LUN"},"MAR","MER","JEU","VEN","SAM"]
[null,{"$f":"YEAR(TODAY())","v":2018}]
[null,null,{"$f":"JoursEtSemaines+DATE(AnnéeCivile,1,1)-WEEKDAY(DATE(AnnéeCivile,1,1),(DébutSemaine=\"LUN\")+1)+1","v":"2017-12-31"},"2018-01-01","2018-01-02","2018-01-03","2018-01-04","2018-01-05","2018-01-06"]
[null,null,{"$f":"IF(DAY(JourCalendrier)=1,CONCATENATE(\"Semaine \",WEEKNUM(JourCalendrier),\"/Jour \",JourCalendrier-DATE(YEAR(JourCalendrier),1,0)),CONCATENATE(\"Jour \",JourCalendrier-DATE(YEAR(JourCalendrier),1,0)))","v":"Jour 365"},{"$f":"IF(DAY(JourCalendrier)=1,CONCATENATE(\"Semaine \",WEEKNUM(JourCalendrier),\"/Jour \",JourCalendrier-DATE(YEAR(JourCalendrier),1,0)),CONCATENATE(\"Jour \",JourCalendrier-DATE(YEAR(JourCalendrier),1,0)))","v":"Semaine 1/Jour 1"},{"$f":"IF(DAY(JourCalendrier)=1,CONCATENATE(\"Semaine \",WEEKNUM(JourCalendrier),\"/Jour \",JourCalendrier-DATE(YEAR(JourCalendrier),1,0)),CONCATENATE(\"Jour \",JourCalendrier-DATE(YEAR(JourCalendrier),1,0)))","v":"Jour 2"},{"$f":"IF(DAY(JourCalendrier)=1,CONCATENATE(\"Semaine \",WEEKNUM(JourCalendrier),\"/Jour \",JourCalendrier-DATE(YEAR(JourCalendrier),1,0)),CONCATENATE(\"Jour \",JourCalendrier-DATE(YEAR(JourCalendrier),1,0)))","v":"Jour 3"},{"$f":"IF(DAY(JourCalendrier)=1,CONCATENATE(\"Semaine \",WEEKNUM(JourCalendrier),\"/Jour \",JourCalendrier-DATE(YEAR(JourCalendrier),1,0)),CONCATENATE(\"Jour \",JourCalendrier-DATE(YEAR(JourCalendrier),1,0)))","v":"Jour 4"},{"$f":"IF(DAY(JourCalendrier)=1,CONCATENATE(\"Semaine \",WEEKNUM(JourCalendrier),\"/Jour \",JourCalendrier-DATE(YEAR(JourCalendrier),1,0)),CONCATENATE(\"Jour \",JourCalendrier-DATE(YEAR(JourCalendrier),1,0)))","v":"Jour 5"},{"$f":"IF(DAY(JourCalendrier)=1,CONCATENATE(\"Semaine \",WEEKNUM(JourCalendrier),\"/Jour \",JourCalendrier-DATE(YEAR(JourCalendrier),1,0)),CONCATENATE(\"Jour \",JourCalendrier-DATE(YEAR(JourCalendrier),1,0)))","v":"Jour 6"}]
[]
[null,null,{"$f":"JoursEtSemaines+DATE(AnnéeCivile,1,1)-WEEKDAY(DATE(AnnéeCivile,1,1),(DébutSemaine=\"LUN\")+1)+8","v":"2018-01-07"},"2018-01-08","2018-01-09","2018-01-10","2018-01-11","2018-01-12","2018-01-13"]
[null,null,{"$f":"IF(WEEKDAY(JourCalendrier)=DébutSemaine,CONCATENATE(\"Semaine \",WEEKNUM(JourCalendrier),\"/Jour \",JourCalendrier-DATE(YEAR(JourCalendrier),1,0)),CONCATENATE(\"Jour \",JourCalendrier-DATE(YEAR(JourCalendrier),1,0)))","v":"Jour 7"},{"$f":"IF(WEEKDAY(JourCalendrier)=DébutSemaine,CONCATENATE(\"Semaine \",WEEKNUM(JourCalendrier),\"/Jour \",JourCalendrier-DATE(YEAR(JourCalendrier),1,0)),CONCATENATE(\"Jour \",JourCalendrier-DATE(YEAR(JourCalendrier),1,0)))","v":"Jour 8"},{"$f":"IF(WEEKDAY(JourCalendrier)=DébutSemaine,CONCATENATE(\"Semaine \",WEEKNUM(JourCalendrier),\"/Jour \",JourCalendrier-DATE(YEAR(JourCalendrier),1,0)),CONCATENATE(\"Jour \",JourCalendrier-DATE(YEAR(JourCalendrier),1,0)))","v":"Jour 9"},{"$f":"IF(WEEKDAY(JourCalendrier)=DébutSemaine,CONCATENATE(\"Semaine \",WEEKNUM(JourCalendrier),\"/Jour \",JourCalendrier-DATE(YEAR(JourCalendrier),1,0)),CONCATENATE(\"Jour \",JourCalendrier-DATE(YEAR(JourCalendrier),1,0)))","v":"Jour 10"},{"$f":"IF(WEEKDAY(JourCalendrier)=DébutSemaine,CONCATENATE(\"Semaine \",WEEKNUM(JourCalendrier),\"/Jour \",JourCalendrier-DATE(YEAR(JourCalendrier),1,0)),CONCATENATE(\"Jour \",JourCalendrier-DATE(YEAR(JourCalendrier),1,0)))","v":"Jour 11"},{"$f":"IF(WEEKDAY(JourCalendrier)=DébutSemaine,CONCATENATE(\"Semaine \",WEEKNUM(JourCalendrier),\"/Jour \",JourCalendrier-DATE(YEAR(JourCalendrier),1,0)),CONCATENATE(\"Jour \",JourCalendrier-DATE(YEAR(JourCalendrier),1,0)))","v":"Jour 12"},{"$f":"IF(WEEKDAY(JourCalendrier)=DébutSemaine,CONCATENATE(\"Semaine \",WEEKNUM(JourCalendrier),\"/Jour \",JourCalendrier-DATE(YEAR(JourCalendrier),1,0)),CONCATENATE(\"Jour \",JourCalendrier-DATE(YEAR(JourCalendrier),1,0)))","v":"Jour 13"}]
[]
[null,null,{"$f":"JoursEtSemaines+DATE(AnnéeCivile,1,1)-WEEKDAY(DATE(AnnéeCivile,1,1),(DébutSemaine=\"LUN\")+1)+15","v":"2018-01-14"},"2018-01-15","2018-01-16","2018-01-17","2018-01-18","2018-01-19","2018-01-20"]
[null,null,{"$f":"IF(WEEKDAY(JourCalendrier)=DébutSemaine,CONCATENATE(\"Semaine \",WEEKNUM(JourCalendrier),\"/Jour \",JourCalendrier-DATE(YEAR(JourCalendrier),1,0)),CONCATENATE(\"Jour \",JourCalendrier-DATE(YEAR(JourCalendrier),1,0)))","v":"Jour 14"},{"$f":"IF(WEEKDAY(JourCalendrier)=DébutSemaine,CONCATENATE(\"Semaine \",WEEKNUM(JourCalendrier),\"/Jour \",JourCalendrier-DATE(YEAR(JourCalendrier),1,0)),CONCATENATE(\"Jour \",JourCalendrier-DATE(YEAR(JourCalendrier),1,0)))","v":"Jour 15"},{"$f":"IF(WEEKDAY(JourCalendrier)=DébutSemaine,CONCATENATE(\"Semaine \",WEEKNUM(JourCalendrier),\"/Jour \",JourCalendrier-DATE(YEAR(JourCalendrier),1,0)),CONCATENATE(\"Jour \",JourCalendrier-DATE(YEAR(JourCalendrier),1,0)))","v":"Jour 16"},{"$f":"IF(WEEKDAY(JourCalendrier)=DébutSemaine,CONCATENATE(\"Semaine \",WEEKNUM(JourCalendrier),\"/Jour \",JourCalendrier-DATE(YEAR(JourCalendrier),1,0)),CONCATENATE(\"Jour \",JourCalendrier-DATE(YEAR(JourCalendrier),1,0)))","v":"Jour 17"},{"$f":"IF(WEEKDAY(JourCalendrier)=DébutSemaine,CONCATENATE(\"Semaine \",WEEKNUM(JourCalendrier),\"/Jour \",JourCalendrier-DATE(YEAR(JourCalendrier),1,0)),CONCATENATE(\"Jour \",JourCalendrier-DATE(YEAR(JourCalendrier),1,0)))","v":"Jour 18"},{"$f":"IF(WEEKDAY(JourCalendrier)=DébutSemaine,CONCATENATE(\"Semaine \",WEEKNUM(JourCalendrier),\"/Jour \",JourCalendrier-DATE(YEAR(JourCalendrier),1,0)),CONCATENATE(\"Jour \",JourCalendrier-DATE(YEAR(JourCalendrier),1,0)))","v":"Jour 19"},{"$f":"IF(WEEKDAY(JourCalendrier)=DébutSemaine,CONCATENATE(\"Semaine \",WEEKNUM(JourCalendrier),\"/Jour \",JourCalendrier-DATE(YEAR(JourCalendrier),1,0)),CONCATENATE(\"Jour \",JourCalendrier-DATE(YEAR(JourCalendrier),1,0)))","v":"Jour 20"}]
[]
[null,null,{"$f":"JoursEtSemaines+DATE(AnnéeCivile,1,1)-WEEKDAY(DATE(AnnéeCivile,1,1),(DébutSemaine=\"LUN\")+1)+22","v":"2018-01-21"},"2018-01-22","2018-01-23","2018-01-24","2018-01-25","2018-01-26","2018-01-27"]
[null,null,{"$f":"IF(WEEKDAY(JourCalendrier)=DébutSemaine,CONCATENATE(\"Semaine \",WEEKNUM(JourCalendrier),\"/Jour \",JourCalendrier-DATE(YEAR(JourCalendrier),1,0)),CONCATENATE(\"Jour \",JourCalendrier-DATE(YEAR(JourCalendrier),1,0)))","v":"Jour 21"},{"$f":"IF(WEEKDAY(JourCalendrier)=DébutSemaine,CONCATENATE(\"Semaine \",WEEKNUM(JourCalendrier),\"/Jour \",JourCalendrier-DATE(YEAR(JourCalendrier),1,0)),CONCATENATE(\"Jour \",JourCalendrier-DATE(YEAR(JourCalendrier),1,0)))","v":"Jour 22"},{"$f":"IF(WEEKDAY(JourCalendrier)=DébutSemaine,CONCATENATE(\"Semaine \",WEEKNUM(JourCalendrier),\"/Jour \",JourCalendrier-DATE(YEAR(JourCalendrier),1,0)),CONCATENATE(\"Jour \",JourCalendrier-DATE(YEAR(JourCalendrier),1,0)))","v":"Jour 23"},{"$f":"IF(WEEKDAY(JourCalendrier)=DébutSemaine,CONCATENATE(\"Semaine \",WEEKNUM(JourCalendrier),\"/Jour \",JourCalendrier-DATE(YEAR(JourCalendrier),1,0)),CONCATENATE(\"Jour \",JourCalendrier-DATE(YEAR(JourCalendrier),1,0)))","v":"Jour 24"},{"$f":"IF(WEEKDAY(JourCalendrier)=DébutSemaine,CONCATENATE(\"Semaine \",WEEKNUM(JourCalendrier),\"/Jour \",JourCalendrier-DATE(YEAR(JourCalendrier),1,0)),CONCATENATE(\"Jour \",JourCalendrier-DATE(YEAR(JourCalendrier),1,0)))","v":"Jour 25"},{"$f":"IF(WEEKDAY(JourCalendrier)=DébutSemaine,CONCATENATE(\"Semaine \",WEEKNUM(JourCalendrier),\"/Jour \",JourCalendrier-DATE(YEAR(JourCalendrier),1,0)),CONCATENATE(\"Jour \",JourCalendrier-DATE(YEAR(JourCalendrier),1,0)))","v":"Jour 26"},{"$f":"IF(WEEKDAY(JourCalendrier)=DébutSemaine,CONCATENATE(\"Semaine \",WEEKNUM(JourCalendrier),\"/Jour \",JourCalendrier-DATE(YEAR(JourCalendrier),1,0)),CONCATENATE(\"Jour \",JourCalendrier-DATE(YEAR(JourCalendrier),1,0)))","v":"Jour 27"}]
[]
[null,null,{"$f":"JoursEtSemaines+DATE(AnnéeCivile,1,1)-WEEKDAY(DATE(AnnéeCivile,1,1),(DébutSemaine=\"LUN\")+1)+29","v":"2018-01-28"},"2018-01-29","2018-01-30","2018-01-31","2018-02-01","2018-02-02","2018-02-03"]
[null,null,{"$f":"IF(WEEKDAY(JourCalendrier)=DébutSemaine,CONCATENATE(\"Semaine \",WEEKNUM(JourCalendrier),\"/Jour \",JourCalendrier-DATE(YEAR(JourCalendrier),1,0)),CONCATENATE(\"Jour \",JourCalendrier-DATE(YEAR(JourCalendrier),1,0)))","v":"Jour 28"},{"$f":"IF(WEEKDAY(JourCalendrier)=DébutSemaine,CONCATENATE(\"Semaine \",WEEKNUM(JourCalendrier),\"/Jour \",JourCalendrier-DATE(YEAR(JourCalendrier),1,0)),CONCATENATE(\"Jour \",JourCalendrier-DATE(YEAR(JourCalendrier),1,0)))","v":"Jour 29"},{"$f":"IF(WEEKDAY(JourCalendrier)=DébutSemaine,CONCATENATE(\"Semaine \",WEEKNUM(JourCalendrier),\"/Jour \",JourCalendrier-DATE(YEAR(JourCalendrier),1,0)),CONCATENATE(\"Jour \",JourCalendrier-DATE(YEAR(JourCalendrier),1,0)))","v":"Jour 30"},{"$f":"IF(WEEKDAY(JourCalendrier)=DébutSemaine,CONCATENATE(\"Semaine \",WEEKNUM(JourCalendrier),\"/Jour \",JourCalendrier-DATE(YEAR(JourCalendrier),1,0)),CONCATENATE(\"Jour \",JourCalendrier-DATE(YEAR(JourCalendrier),1,0)))","v":"Jour 31"},{"$f":"IF(WEEKDAY(JourCalendrier)=DébutSemaine,CONCATENATE(\"Semaine \",WEEKNUM(JourCalendrier),\"/Jour \",JourCalendrier-DATE(YEAR(JourCalendrier),1,0)),CONCATENATE(\"Jour \",JourCalendrier-DATE(YEAR(JourCalendrier),1,0)))","v":"Jour 32"},{"$f":"IF(WEEKDAY(JourCalendrier)=DébutSemaine,CONCATENATE(\"Semaine \",WEEKNUM(JourCalendrier),\"/Jour \",JourCalendrier-DATE(YEAR(JourCalendrier),1,0)),CONCATENATE(\"Jour \",JourCalendrier-DATE(YEAR(JourCalendrier),1,0)))","v":"Jour 33"},{"$f":"IF(WEEKDAY(JourCalendrier)=DébutSemaine,CONCATENATE(\"Semaine \",WEEKNUM(JourCalendrier),\"/Jour \",JourCalendrier-DATE(YEAR(JourCalendrier),1,0)),CONCATENATE(\"Jour \",JourCalendrier-DATE(YEAR(JourCalendrier),1,0)))","v":"Jour 34"}]
[{"$nulls":4},"NOTES"]
[]
[null,null,{"$f":"JoursEtSemaines+DATE(AnnéeCivile,1,1)-WEEKDAY(DATE(AnnéeCivile,1,1),(DébutSemaine=\"LUN\")+1)+36","v":"2018-02-04"},"2018-02-05"]
[null,null,{"$f":"IF(WEEKDAY(JourCalendrier)=DébutSemaine,CONCATENATE(\"Semaine \",WEEKNUM(JourCalendrier),\"/Jour \",JourCalendrier-DATE(YEAR(JourCalendrier),1,0)),CONCATENATE(\"Jour \",JourCalendrier-DATE(YEAR(JourCalendrier),1,0)))","v":"Jour 35"},{"$f":"IF(WEEKDAY(JourCalendrier)=DébutSemaine,CONCATENATE(\"Semaine \",WEEKNUM(JourCalendrier),\"/Jour \",JourCalendrier-DATE(YEAR(JourCalendrier),1,0)),CONCATENATE(\"Jour \",JourCalendrier-DATE(YEAR(JourCalendrier),1,0)))","v":"Jour 36"}]

{"sheet":"FÉVR.","index":1,"n_rows":20,"n_cols":9,"rows_kept":20,"merged":[[16,2,17,2],[17,4,19,8]]}
[null,"FÉVR.",{"$f":"UPPER(TEXT(DébutSemaine,\"jjj\"))","v":"DIM"},{"$f":"UPPER(TEXT(D3,\"jjj\"))","v":"LUN"},"MAR","MER","JEU","VEN","SAM"]
[null,{"$f":"AnnéeCivile","v":2018}]
[null,null,{"$f":"JoursEtSemaines+DATE(AnnéeCivile,2,1)-WEEKDAY(DATE(AnnéeCivile,2,1),(DébutSemaine=\"LUN\")+1)+1","v":"2018-01-28"},"2018-01-29","2018-01-30","2018-01-31","2018-02-01","2018-02-02","2018-02-03"]
[null,null,{"$f":"IF(DAY(JourCalendrier)=1,CONCATENATE(\"Semaine \",WEEKNUM(JourCalendrier),\"/Jour \",JourCalendrier-DATE(YEAR(JourCalendrier),1,0)),CONCATENATE(\"Jour \",JourCalendrier-DATE(YEAR(JourCalendrier),1,0)))","v":"Jour 28"},{"$f":"IF(DAY(JourCalendrier)=1,CONCATENATE(\"Semaine \",WEEKNUM(JourCalendrier),\"/Jour \",JourCalendrier-DATE(YEAR(JourCalendrier),1,0)),CONCATENATE(\"Jour \",JourCalendrier-DATE(YEAR(JourCalendrier),1,0)))","v":"Jour 29"},{"$f":"IF(DAY(JourCalendrier)=1,CONCATENATE(\"Semaine \",WEEKNUM(JourCalendrier),\"/Jour \",JourCalendrier-DATE(YEAR(JourCalendrier),1,0)),CONCATENATE(\"Jour \",JourCalendrier-DATE(YEAR(JourCalendrier),1,0)))","v":"Jour 30"},{"$f":"IF(DAY(JourCalendrier)=1,CONCATENATE(\"Semaine \",WEEKNUM(JourCalendrier),\"/Jour \",JourCalendrier-DATE(YEAR(JourCalendrier),1,0)),CONCATENATE(\"Jour \",JourCalendrier-DATE(YEAR(JourCalendrier),1,0)))","v":"Jour 31"},{"$f":"IF(DAY(JourCalendrier)=1,CONCATENATE(\"Semaine \",WEEKNUM(JourCalendrier),\"/Jour \",JourCalendrier-DATE(YEAR(JourCalendrier),1,0)),CONCATENATE(\"Jour \",JourCalendrier-DATE(YEAR(JourCalendrier),1,0)))","v":"Semaine 5/Jour 32"},{"$f":"IF(DAY(JourCalendrier)=1,CONCATENATE(\"Semaine \",WEEKNUM(JourCalendrier),\"/Jour \",JourCalendrier-DATE(YEAR(JourCalendrier),1,0)),CONCATENATE(\"Jour \",JourCalendrier-DATE(YEAR(JourCalendrier),1,0)))","v":"Jour 33"},{"$f":"IF(DAY(JourCalendrier)=1,CONCATENATE(\"Semaine \",WEEKNUM(JourCalendrier),\"/Jour \",JourCalendrier-DATE(YEAR(JourCalendrier),1,0)),CONCATENATE(\"Jour \",JourCalendrier-DATE(YEAR(JourCalendrier),1,0)))","v":"Jour 34"}]
[]
[null,null,{"$f":"JoursEtSemaines+DATE(AnnéeCivile,2,1)-WEEKDAY(DATE(AnnéeCivile,2,1),(DébutSemaine=\"LUN\")+1)+8","v":"2018-02-04"},"2018-02-05","2018-02-06","2018-02-07","2018-02-08","2018-02-09","2018-02-10"]
[null,null,{"$f":"IF(WEEKDAY(JourCalendrier)=DébutSemaine,CONCATENATE(\"Semaine \",WEEKNUM(JourCalendrier),\"/Jour \",JourCalendrier-DATE(YEAR(JourCalendrier),1,0)),CONCATENATE(\"Jour \",JourCalendrier-DATE(YEAR(JourCalendrier),1,0)))","v":"Jour 35"},{"$f":"IF(WEEKDAY(JourCalendrier)=DébutSemaine,CONCATENATE(\"Semaine \",WEEKNUM(JourCalendrier),\"/Jour \",JourCalendrier-DATE(YEAR(JourCalendrier),1,0)),CONCATENATE(\"Jour \",JourCalendrier-DATE(YEAR(JourCalendrier),1,0)))","v":"Jour 36"},{"$f":"IF(WEEKDAY(JourCalendrier)=DébutSemaine,CONCATENATE(\"Semaine \",WEEKNUM(JourCalendrier),\"/Jour \",JourCalendrier-DATE(YEAR(JourCalendrier),1,0)),CONCATENATE(\"Jour \",JourCalendrier-DATE(YEAR(JourCalendrier),1,0)))","v":"Jour 37"},{"$f":"IF(WEEKDAY(JourCalendrier)=DébutSemaine,CONCATENATE(\"Semaine \",WEEKNUM(JourCalendrier),\"/Jour \",JourCalendrier-DATE(YEAR(JourCalendrier),1,0)),CONCATENATE(\"Jour \",JourCalendrier-DATE(YEAR(JourCalendrier),1,0)))","v":"Jour 38"},{"$f":"IF(WEEKDAY(JourCalendrier)=DébutSemaine,CONCATENATE(\"Semaine \",WEEKNUM(JourCalendrier),\"/Jour \",JourCalendrier-DATE(YEAR(JourCalendrier),1,0)),CONCATENATE(\"Jour \",JourCalendrier-DATE(YEAR(JourCalendrier),1,0)))","v":"Jour 39"},{"$f":"IF(WEEKDAY(JourCalendrier)=DébutSemaine,CONCATENATE(\"Semaine \",WEEKNUM(JourCalendrier),\"/Jour \",JourCalendrier-DATE(YEAR(JourCalendrier),1,0)),CONCATENATE(\"Jour \",JourCalendrier-DATE(YEAR(JourCalendrier),1,0)))","v":"Jour 40"},{"$f":"IF(WEEKDAY(JourCalendrier)=DébutSemaine,CONCATENATE(\"Semaine \",WEEKNUM(JourCalendrier),\"/Jour \",JourCalendrier-DATE(YEAR(JourCalendrier),1,0)),CONCATENATE(\"Jour \",JourCalendrier-DATE(YEAR(JourCalendrier),1,0)))","v":"Jour 41"}]
[]
[null,null,{"$f":"JoursEtSemaines+DATE(AnnéeCivile,2,1)-WEEKDAY(DATE(AnnéeCivile,2,1),(DébutSemaine=\"LUN\")+1)+15","v":"2018-02-11"},"2018-02-12","2018-02-13","2018-02-14","2018-02-15","2018-02-16","2018-02-17"]
[null,null,{"$f":"IF(WEEKDAY(JourCalendrier)=DébutSemaine,CONCATENATE(\"Semaine \",WEEKNUM(JourCalendrier),\"/Jour \",JourCalendrier-DATE(YEAR(JourCalendrier),1,0)),CONCATENATE(\"Jour \",JourCalendrier-DATE(YEAR(JourCalendrier),1,0)))","v":"Jour 42"},{"$f":"IF(WEEKDAY(JourCalendrier)=DébutSemaine,CONCATENATE(\"Semaine \",WEEKNUM(JourCalendrier),\"/Jour \",JourCalendrier-DATE(YEAR(JourCalendrier),1,0)),CONCATENATE(\"Jour \",JourCalendrier-DATE(YEAR(JourCalendrier),1,0)))","v":"Jour 43"},{"$f":"IF(WEEKDAY(JourCalendrier)=DébutSemaine,CONCATENATE(\"Semaine \",WEEKNUM(JourCalendrier),\"/Jour \",JourCalendrier-DATE(YEAR(JourCalendrier),1,0)),CONCATENATE(\"Jour \",JourCalendrier-DATE(YEAR(JourCalendrier),1,0)))","v":"Jour 44"},{"$f":"IF(WEEKDAY(JourCalendrier)=DébutSemaine,CONCATENATE(\"Semaine \",WEEKNUM(JourCalendrier),\"/Jour \",JourCalendrier-DATE(YEAR(JourCalendrier),1,0)),CONCATENATE(\"Jour \",JourCalendrier-DATE(YEAR(JourCalendrier),1,0)))","v":"Jour 45"},{"$f":"IF(WEEKDAY(JourCalendrier)=DébutSemaine,CONCATENATE(\"Semaine \",WEEKNUM(JourCalendrier),\"/Jour \",JourCalendrier-DATE(YEAR(JourCalendrier),1,0)),CONCATENATE(\"Jour \",JourCalendrier-DATE(YEAR(JourCalendrier),1,0)))","v":"Jour 46"},{"$f":"IF(WEEKDAY(JourCalendrier)=DébutSemaine,CONCATENATE(\"Semaine \",WEEKNUM(JourCalendrier),\"/Jour \",JourCalendrier-DATE(YEAR(JourCalendrier),1,0)),CONCATENATE(\"Jour \",JourCalendrier-DATE(YEAR(JourCalendrier),1,0)))","v":"Jour 47"},{"$f":"IF(WEEKDAY(JourCalendrier)=DébutSemaine,CONCATENATE(\"Semaine \",WEEKNUM(JourCalendrier),\"/Jour \",JourCalendrier-DATE(YEAR(JourCalendrier),1,0)),CONCATENATE(\"Jour \",JourCalendrier-DATE(YEAR(JourCalendrier),1,0)))","v":"Jour 48"}]
[]
[null,null,{"$f":"JoursEtSemaines+DATE(AnnéeCivile,2,1)-WEEKDAY(DATE(AnnéeCivile,2,1),(DébutSemaine=\"LUN\")+1)+22","v":"2018-02-18"},"2018-02-19","2018-02-20","2018-02-21","2018-02-22","2018-02-23","2018-02-24"]
[null,null,{"$f":"IF(WEEKDAY(JourCalendrier)=DébutSemaine,CONCATENATE(\"Semaine \",WEEKNUM(JourCalendrier),\"/Jour \",JourCalendrier-DATE(YEAR(JourCalendrier),1,0)),CONCATENATE(\"Jour \",JourCalendrier-DATE(YEAR(JourCalendrier),1,0)))","v":"Jour 49"},{"$f":"IF(WEEKDAY(JourCalendrier)=DébutSemaine,CONCATENATE(\"Semaine \",WEEKNUM(JourCalendrier),\"/Jour \",JourCalendrier-DATE(YEAR(JourCalendrier),1,0)),CONCATENATE(\"Jour \",JourCalendrier-DATE(YEAR(JourCalendrier),1,0)))","v":"Jour 50"},{"$f":"IF(WEEKDAY(JourCalendrier)=DébutSemaine,CONCATENATE(\"Semaine \",WEEKNUM(JourCalendrier),\"/Jour \",JourCalendrier-DATE(YEAR(JourCalendrier),1,0)),CONCATENATE(\"Jour \",JourCalendrier-DATE(YEAR(JourCalendrier),1,0)))","v":"Jour 51"},{"$f":"IF(WEEKDAY(JourCalendrier)=DébutSemaine,CONCATENATE(\"Semaine \",WEEKNUM(JourCalendrier),\"/Jour \",JourCalendrier-DATE(YEAR(JourCalendrier),1,0)),CONCATENATE(\"Jour \",JourCalendrier-DATE(YEAR(JourCalendrier),1,0)))","v":"Jour 52"},{"$f":"IF(WEEKDAY(JourCalendrier)=DébutSemaine,CONCATENATE(\"Semaine \",WEEKNUM(JourCalendrier),\"/Jour \",JourCalendrier-DATE(YEAR(JourCalendrier),1,0)),CONCATENATE(\"Jour \",JourCalendrier-DATE(YEAR(JourCalendrier),1,0)))","v":"Jour 53"},{"$f":"IF(WEEKDAY(JourCalendrier)=DébutSemaine,CONCATENATE(\"Semaine \",WEEKNUM(JourCalendrier),\"/Jour \",JourCalendrier-DATE(YEAR(JourCalendrier),1,0)),CONCATENATE(\"Jour \",JourCalendrier-DATE(YEAR(JourCalendrier),1,0)))","v":"Jour 54"},{"$f":"IF(WEEKDAY(JourCalendrier)=DébutSemaine,CONCATENATE(\"Semaine \",WEEKNUM(JourCalendrier),\"/Jour \",JourCalendrier-DATE(YEAR(JourCalendrier),1,0)),CONCATENATE(\"Jour \",JourCalendrier-DATE(YEAR(JourCalendrier),1,0)))","v":"Jour 55"}]
[]
[null,null,{"$f":"JoursEtSemaines+DATE(AnnéeCivile,2,1)-WEEKDAY(DATE(AnnéeCivile,2,1),(DébutSemaine=\"LUN\")+1)+29","v":"2018-02-25"},"2018-02-26","2018-02-27","2018-02-28","2018-03-01","2018-03-02","2018-03-03"]
[null,null,{"$f":"IF(WEEKDAY(JourCalendrier)=DébutSemaine,CONCATENATE(\"Semaine \",WEEKNUM(JourCalendrier),\"/Jour \",JourCalendrier-DATE(YEAR(JourCalendrier),1,0)),CONCATENATE(\"Jour \",JourCalendrier-DATE(YEAR(JourCalendrier),1,0)))","v":"Jour 56"},{"$f":"IF(WEEKDAY(JourCalendrier)=DébutSemaine,CONCATENATE(\"Semaine \",WEEKNUM(JourCalendrier),\"/Jour \",JourCalendrier-DATE(YEAR(JourCalendrier),1,0)),CONCATENATE(\"Jour \",JourCalendrier-DATE(YEAR(JourCalendrier),1,0)))","v":"Jour 57"},{"$f":"IF(WEEKDAY(JourCalendrier)=DébutSemaine,CONCATENATE(\"Semaine \",WEEKNUM(JourCalendrier),\"/Jour \",JourCalendrier-DATE(YEAR(JourCalendrier),1,0)),CONCATENATE(\"Jour \",JourCalendrier-DATE(YEAR(JourCalendrier),1,0)))","v":"Jour 58"},{"$f":"IF(WEEKDAY(JourCalendrier)=DébutSemaine,CONCATENATE(\"Semaine \",WEEKNUM(JourCalendrier),\"/Jour \",JourCalendrier-DATE(YEAR(JourCalendrier),1,0)),CONCATENATE(\"Jour \",JourCalendrier-DATE(YEAR(JourCalendrier),1,0)))","v":"Jour 59"},{"$f":"IF(WEEKDAY(JourCalendrier)=DébutSemaine,CONCATENATE(\"Semaine \",WEEKNUM(JourCalendrier),\"/Jour \",JourCalendrier-DATE(YEAR(JourCalendrier),1,0)),CONCATENATE(\"Jour \",JourCalendrier-DATE(YEAR(JourCalendrier),1,0)))","v":"Jour 60"},{"$f":"IF(WEEKDAY(JourCalendrier)=DébutSemaine,CONCATENATE(\"Semaine \",WEEKNUM(JourCalendrier),\"/Jour \",JourCalendrier-DATE(YEAR(JourCalendrier),1,0)),CONCATENATE(\"Jour \",JourCalendrier-DATE(YEAR(JourCalendrier),1,0)))","v":"Jour 61"},{"$f":"IF(WEEKDAY(JourCalendrier)=DébutSemaine,CONCATENATE(\"Semaine \",WEEKNUM(JourCalendrier),\"/Jour \",JourCalendrier-DATE(YEAR(JourCalendrier),1,0)),CONCATENATE(\"Jour \",JourCalendrier-DATE(YEAR(JourCalendrier),1,0)))","v":"Jour 62"}]
[{"$nulls":4},"NOTES"]
[]
[null,null,{"$f":"JoursEtSemaines+DATE(AnnéeCivile,2,1)-WEEKDAY(DATE(AnnéeCivile,2,1),(DébutSemaine=\"LUN\")+1)+36","v":"2018-03-04"},"2018-03-05"]
[null,null,{"$f":"IF(WEEKDAY(JourCalendrier)=DébutSemaine,CONCATENATE(\"Semaine \",WEEKNUM(JourCalendrier),\"/Jour \",JourCalendrier-DATE(YEAR(JourCalendrier),1,0)),CONCATENATE(\"Jour \",JourCalendrier-DATE(YEAR(JourCalendrier),1,0)))","v":"Jour 63"},{"$f":"IF(WEEKDAY(JourCalendrier)=DébutSemaine,CONCATENATE(\"Semaine \",WEEKNUM(JourCalendrier),\"/Jour \",JourCalendrier-DATE(YEAR(JourCalendrier),1,0)),CONCATENATE(\"Jour \",JourCalendrier-DATE(YEAR(JourCalendrier),1,0)))","v":"Jour 64"}]

{"sheet":"MARS","index":2,"n_rows":20,"n_cols":9,"rows_kept":20,"merged":[[16,2,17,2],[17,4,19,8]]}
[null,"MARS",{"$f":"UPPER(TEXT(DébutSemaine,\"jjj\"))","v":"DIM"},{"$f":"UPPER(TEXT(D3,\"jjj\"))","v":"LUN"},"MAR","MER","JEU","VEN","SAM"]
[null,{"$f":"AnnéeCivile","v":2018}]
[null,null,{"$f":"JoursEtSemaines+DATE(AnnéeCivile,3,1)-WEEKDAY(DATE(AnnéeCivile,3,1),(DébutSemaine=\"LUN\")+1)+1","v":"2018-02-25"},"2018-02-26","2018-02-27","2018-02-28","2018-03-01","2018-03-02","2018-03-03"]
[null,null,{"$f":"IF(DAY(JourCalendrier)=1,CONCATENATE(\"Semaine \",WEEKNUM(JourCalendrier),\"/Jour \",JourCalendrier-DATE(YEAR(JourCalendrier),1,0)),CONCATENATE(\"Jour \",JourCalendrier-DATE(YEAR(JourCalendrier),1,0)))","v":"Jour 56"},{"$f":"IF(DAY(JourCalendrier)=1,CONCATENATE(\"Semaine \",WEEKNUM(JourCalendrier),\"/Jour \",JourCalendrier-DATE(YEAR(JourCalendrier),1,0)),CONCATENATE(\"Jour \",JourCalendrier-DATE(YEAR(JourCalendrier),1,0)))","v":"Jour 57"},{"$f":"IF(DAY(JourCalendrier)=1,CONCATENATE(\"Semaine \",WEEKNUM(JourCalendrier),\"/Jour \",JourCalendrier-DATE(YEAR(JourCalendrier),1,0)),CONCATENATE(\"Jour \",JourCalendrier-DATE(YEAR(JourCalendrier),1,0)))","v":"Jour 58"},{"$f":"IF(DAY(JourCalendrier)=1,CONCATENATE(\"Semaine \",WEEKNUM(JourCalendrier),\"/Jour \",JourCalendrier-DATE(YEAR(JourCalendrier),1,0)),CONCATENATE(\"Jour \",JourCalendrier-DATE(YEAR(JourCalendrier),1,0)))","v":"Jour 59"},{"$f":"IF(DAY(JourCalendrier)=1,CONCATENATE(\"Semaine \",WEEKNUM(JourCalendrier),\"/Jour \",JourCalendrier-DATE(YEAR(JourCalendrier),1,0)),CONCATENATE(\"Jour \",JourCalendrier-DATE(YEAR(JourCalendrier),1,0)))","v":"Semaine 9/Jour 60"},{"$f":"IF(DAY(JourCalendrier)=1,CONCATENATE(\"Semaine \",WEEKNUM(JourCalendrier),\"/Jour \",JourCalendrier-DATE(YEAR(JourCalendrier),1,0)),CONCATENATE(\"Jour \",JourCalendrier-DATE(YEAR(JourCalendrier),1,0)))","v":"Jour 61"},{"$f":"IF(DAY(JourCalendrier)=1,CONCATENATE(\"Semaine \",WEEKNUM(JourCalendrier),\"/Jour \",JourCalendrier-DATE(YEAR(JourCalendrier),1,0)),CONCATENATE(\"Jour \",JourCalendrier-DATE(YEAR(JourCalendrier),1,0)))","v":"Jour 62"}]
[]
[null,null,{"$f":"JoursEtSemaines+DATE(AnnéeCivile,3,1)-WEEKDAY(DATE(AnnéeCivile,3,1),(DébutSemaine=\"LUN\")+1)+8","v":"2018-03-04"},"2018-03-05","2018-03-06","2018-03-07","2018-03-08","2018-03-09","2018-03-10"]
[null,null,{"$f":"IF(WEEKDAY(JourCalendrier)=DébutSemaine,CONCATENATE(\"Semaine \",WEEKNUM(JourCalendrier),\"/Jour \",JourCalendrier-DATE(YEAR(JourCalendrier),1,0)),CONCATENATE(\"Jour \",JourCalendrier-DATE(YEAR(JourCalendrier),1,0)))","v":"Jour 63"},{"$f":"IF(WEEKDAY(JourCalendrier)=DébutSemaine,CONCATENATE(\"Semaine \",WEEKNUM(JourCalendrier),\"/Jour \",JourCalendrier-DATE(YEAR(JourCalendrier),1,0)),CONCATENATE(\"Jour \",JourCalendrier-DATE(YEAR(JourCalendrier),1,0)))","v":"Jour 64"},{"$f":"IF(WEEKDAY(JourCalendrier)=DébutSemaine,CONCATENATE(\"Semaine \",WEEKNUM(JourCalendrier),\"/Jour \",JourCalendrier-DATE(YEAR(JourCalendrier),1,0)),CONCATENATE(\"Jour \",JourCalendrier-DATE(YEAR(JourCalendrier),1,0)))","v":"Jour 65"},{"$f":"IF(WEEKDAY(JourCalendrier)=DébutSemaine,CONCATENATE(\"Semaine \",WEEKNUM(JourCalendrier),\"/Jour \",JourCalendrier-DATE(YEAR(JourCalendrier),1,0)),CONCATENATE(\"Jour \",JourCalendrier-DATE(YEAR(JourCalendrier),1,0)))","v":"Jour 66"},{"$f":"IF(WEEKDAY(JourCalendrier)=DébutSemaine,CONCATENATE(\"Semaine \",WEEKNUM(JourCalendrier),\"/Jour \",JourCalendrier-DATE(YEAR(JourCalendrier),1,0)),CONCATENATE(\"Jour \",JourCalendrier-DATE(YEAR(JourCalendrier),1,0)))","v":"Jour 67"},{"$f":"IF(WEEKDAY(JourCalendrier)=DébutSemaine,CONCATENATE(\"Semaine \",WEEKNUM(JourCalendrier),\"/Jour \",JourCalendrier-DATE(YEAR(JourCalendrier),1,0)),CONCATENATE(\"Jour \",JourCalendrier-DATE(YEAR(JourCalendrier),1,0)))","v":"Jour 68"},{"$f":"IF(WEEKDAY(JourCalendrier)=DébutSemaine,CONCATENATE(\"Semaine \",WEEKNUM(JourCalendrier),\"/Jour \",JourCalendrier-DATE(YEAR(JourCalendrier),1,0)),CONCATENATE(\"Jour \",JourCalendrier-DATE(YEAR(JourCalendrier),1,0)))","v":"Jour 69"}]
[]
[null,null,{"$f":"JoursEtSemaines+DATE(AnnéeCivile,3,1)-WEEKDAY(DATE(AnnéeCivile,3,1),(DébutSemaine=\"LUN\")+1)+15","v":"2018-03-11"},"2018-03-12","2018-03-13","2018-03-14","2018-03-15","2018-03-16","2018-03-17"]
[null,null,{"$f":"IF(WEEKDAY(JourCalendrier)=DébutSemaine,CONCATENATE(\"Semaine \",WEEKNUM(JourCalendrier),\"/Jour \",JourCalendrier-DATE(YEAR(JourCalendrier),1,0)),CONCATENATE(\"Jour \",JourCalendrier-DATE(YEAR(JourCalendrier),1,0)))","v":"Jour 70"},{"$f":"IF(WEEKDAY(JourCalendrier)=DébutSemaine,CONCATENATE(\"Semaine \",WEEKNUM(JourCalendrier),\"/Jour \",JourCalendrier-DATE(YEAR(JourCalendrier),1,0)),CONCATENATE(\"Jour \",JourCalendrier-DATE(YEAR(JourCalendrier),1,0)))","v":"Jour 71"},{"$f":"IF(WEEKDAY(JourCalendrier)=DébutSemaine,CONCATENATE(\"Semaine \",WEEKNUM(JourCalendrier),\"/Jour \",JourCalendrier-DATE(YEAR(JourCalendrier),1,0)),CONCATENATE(\"Jour \",JourCalendrier-DATE(YEAR(JourCalendrier),1,0)))","v":"Jour 72"},{"$f":"IF(WEEKDAY(JourCalendrier)=DébutSemaine,CONCATENATE(\"Semaine \",WEEKNUM(JourCalendrier),\"/Jour \",JourCalendrier-DATE(YEAR(JourCalendrier),1,0)),CONCATENATE(\"Jour \",JourCalendrier-DATE(YEAR(JourCalendrier),1,0)))","v":"Jour 73"},{"$f":"IF(WEEKDAY(JourCalendrier)=DébutSemaine,CONCATENATE(\"Semaine \",WEEKNUM(JourCalendrier),\"/Jour \",JourCalendrier-DATE(YEAR(JourCalendrier),1,0)),CONCATENATE(\"Jour \",JourCalendrier-DATE(YEAR(JourCalendrier),1,0)))","v":"Jour 74"},{"$f":"IF(WEEKDAY(JourCalendrier)=DébutSemaine,CONCATENATE(\"Semaine \",WEEKNUM(JourCalendrier),\"/Jour \",JourCalendrier-DATE(YEAR(JourCalendrier),1,0)),CONCATENATE(\"Jour \",JourCalendrier-DATE(YEAR(JourCalendrier),1,0)))","v":"Jour 75"},{"$f":"IF(WEEKDAY(JourCalendrier)=DébutSemaine,CONCATENATE(\"Semaine \",WEEKNUM(JourCalendrier),\"/Jour \",JourCalendrier-DATE(YEAR(JourCalendrier),1,0)),CONCATENATE(\"Jour \",JourCalendrier-DATE(YEAR(JourCalendrier),1,0)))","v":"Jour 76"}]
[]
[null,null,{"$f":"JoursEtSemaines+DATE(AnnéeCivile,3,1)-WEEKDAY(DATE(AnnéeCivile,3,1),(DébutSemaine=\"LUN\")+1)+22","v":"2018-03-18"},"2018-03-19","2018-03-20","2018-03-21","2018-03-22","2018-03-23","2018-03-24"]
[null,null,{"$f":"IF(WEEKDAY(JourCalendrier)=DébutSemaine,CONCATENATE(\"Semaine \",WEEKNUM(JourCalendrier),\"/Jour \",JourCalendrier-DATE(YEAR(JourCalendrier),1,0)),CONCATENATE(\"Jour \",JourCalendrier-DATE(YEAR(JourCalendrier),1,0)))","v":"Jour 77"},{"$f":"IF(WEEKDAY(JourCalendrier)=DébutSemaine,CONCATENATE(\"Semaine \",WEEKNUM(JourCalendrier),\"/Jour \",JourCalendrier-DATE(YEAR(JourCalendrier),1,0)),CONCATENATE(\"Jour \",JourCalendrier-DATE(YEAR(JourCalendrier),1,0)))","v":"Jour 78"},{"$f":"IF(WEEKDAY(JourCalendrier)=DébutSemaine,CONCATENATE(\"Semaine \",WEEKNUM(JourCalendrier),\"/Jour \",JourCalendrier-DATE(YEAR(JourCalendrier),1,0)),CONCATENATE(\"Jour \",JourCalendrier-DATE(YEAR(JourCalendrier),1,0)))","v":"Jour 79"},{"$f":"IF(WEEKDAY(JourCalendrier)=DébutSemaine,CONCATENATE(\"Semaine \",WEEKNUM(JourCalendrier),\"/Jour \",JourCalendrier-DATE(YEAR(JourCalendrier),1,0)),CONCATENATE(\"Jour \",JourCalendrier-DATE(YEAR(JourCalendrier),1,0)))","v":"Jour 80"},{"$f":"IF(WEEKDAY(JourCalendrier)=DébutSemaine,CONCATENATE(\"Semaine \",WEEKNUM(JourCalendrier),\"/Jour \",JourCalendrier-DATE(YEAR(JourCalendrier),1,0)),CONCATENATE(\"Jour \",JourCalendrier-DATE(YEAR(JourCalendrier),1,0)))","v":"Jour 81"},{"$f":"IF(WEEKDAY(JourCalendrier)=DébutSemaine,CONCATENATE(\"Semaine \",WEEKNUM(JourCalendrier),\"/Jour \",JourCalendrier-DATE(YEAR(JourCalendrier),1,0)),CONCATENATE(\"Jour \",JourCalendrier-DATE(YEAR(JourCalendrier),1,0)))","v":"Jour 82"},{"$f":"IF(WEEKDAY(JourCalendrier)=DébutSemaine,CONCATENATE(\"Semaine \",WEEKNUM(JourCalendrier),\"/Jour \",JourCalendrier-DATE(YEAR(JourCalendrier),1,0)),CONCATENATE(\"Jour \",JourCalendrier-DATE(YEAR(JourCalendrier),1,0)))","v":"Jour 83"}]
[]
[null,null,{"$f":"JoursEtSemaines+DATE(AnnéeCivile,3,1)-WEEKDAY(DATE(AnnéeCivile,3,1),(DébutSemaine=\"LUN\")+1)+29","v":"2018-03-25"},"2018-03-26","2018-03-27","2018-03-28","2018-03-29","2018-03-30","2018-03-31"]
[null,null,{"$f":"IF(WEEKDAY(JourCalendrier)=DébutSemaine,CONCATENATE(\"Semaine \",WEEKNUM(JourCalendrier),\"/Jour \",JourCalendrier-DATE(YEAR(JourCalendrier),1,0)),CONCATENATE(\"Jour \",JourCalendrier-DATE(YEAR(JourCalendrier),1,0)))","v":"Jour 84"},{"$f":"IF(WEEKDAY(JourCalendrier)=DébutSemaine,CONCATENATE(\"Semaine \",WEEKNUM(JourCalendrier),\"/Jour \",JourCalendrier-DATE(YEAR(JourCalendrier),1,0)),CONCATENATE(\"Jour \",JourCalendrier-DATE(YEAR(JourCalendrier),1,0)))","v":"Jour 85"},{"$f":"IF(WEEKDAY(JourCalendrier)=DébutSemaine,CONCATENATE(\"Semaine \",WEEKNUM(JourCalendrier),\"/Jour \",JourCalendrier-DATE(YEAR(JourCalendrier),1,0)),CONCATENATE(\"Jour \",JourCalendrier-DATE(YEAR(JourCalendrier),1,0)))","v":"Jour 86"},{"$f":"IF(WEEKDAY(JourCalendrier)=DébutSemaine,CONCATENATE(\"Semaine \",WEEKNUM(JourCalendrier),\"/Jour \",JourCalendrier-DATE(YEAR(JourCalendrier),1,0)),CONCATENATE(\"Jour \",JourCalendrier-DATE(YEAR(JourCalendrier),1,0)))","v":"Jour 87"},{"$f":"IF(WEEKDAY(JourCalendrier)=DébutSemaine,CONCATENATE(\"Semaine \",WEEKNUM(JourCalendrier),\"/Jour \",JourCalendrier-DATE(YEAR(JourCalendrier),1,0)),CONCATENATE(\"Jour \",JourCalendrier-DATE(YEAR(JourCalendrier),1,0)))","v":"Jour 88"},{"$f":"IF(WEEKDAY(JourCalendrier)=DébutSemaine,CONCATENATE(\"Semaine \",WEEKNUM(JourCalendrier),\"/Jour \",JourCalendrier-DATE(YEAR(JourCalendrier),1,0)),CONCATENATE(\"Jour \",JourCalendrier-DATE(YEAR(JourCalendrier),1,0)))","v":"Jour 89"},{"$f":"IF(WEEKDAY(JourCalendrier)=DébutSemaine,CONCATENATE(\"Semaine \",WEEKNUM(JourCalendrier),\"/Jour \",JourCalendrier-DATE(YEAR(JourCalendrier),1,0)),CONCATENATE(\"Jour \",JourCalendrier-DATE(YEAR(JourCalendrier),1,0)))","v":"Jour 90"}]
[{"$nulls":4},"NOTES"]
[]
[null,null,{"$f":"JoursEtSemaines+DATE(AnnéeCivile,3,1)-WEEKDAY(DATE(AnnéeCivile,3,1),(DébutSemaine=\"LUN\")+1)+36","v":"2018-04-01"},"2018-04-02"]
[null,null,{"$f":"IF(WEEKDAY(JourCalendrier)=DébutSemaine,CONCATENATE(\"Semaine \",WEEKNUM(JourCalendrier),\"/Jour \",JourCalendrier-DATE(YEAR(JourCalendrier),1,0)),CONCATENATE(\"Jour \",JourCalendrier-DATE(YEAR(JourCalendrier),1,0)))","v":"Jour 91"},{"$f":"IF(WEEKDAY(JourCalendrier)=DébutSemaine,CONCATENATE(\"Semaine \",WEEKNUM(JourCalendrier),\"/Jour \",JourCalendrier-DATE(YEAR(JourCalendrier),1,0)),CONCATENATE(\"Jour \",JourCalendrier-DATE(YEAR(JourCalendrier),1,0)))","v":"Jour 92"}]

{"sheet":"AVR.","index":3,"n_rows":20,"n_cols":9,"rows_kept":20,"merged":[[16,2,17,2],[17,4,19,8]]}
[null,"AVR.",{"$f":"UPPER(TEXT(DébutSemaine,\"jjj\"))","v":"DIM"},{"$f":"UPPER(TEXT(D3,\"jjj\"))","v":"LUN"},"MAR","MER","JEU","VEN","SAM"]
[null,{"$f":"AnnéeCivile","v":2018}]
[null,null,{"$f":"JoursEtSemaines+DATE(AnnéeCivile,4,1)-WEEKDAY(DATE(AnnéeCivile,4,1),(DébutSemaine=\"LUN\")+1)+1","v":"2018-04-01"},"2018-04-02","2018-04-03","2018-04-04","2018-04-05","2018-04-06","2018-04-07"]
[null,null,{"$f":"IF(DAY(JourCalendrier)=1,CONCATENATE(\"Semaine \",WEEKNUM(JourCalendrier),\"/Jour \",JourCalendrier-DATE(YEAR(JourCalendrier),1,0)),CONCATENATE(\"Jour \",JourCalendrier-DATE(YEAR(JourCalendrier),1,0)))","v":"Semaine 14/Jour 91"},{"$f":"IF(DAY(JourCalendrier)=1,CONCATENATE(\"Semaine \",WEEKNUM(JourCalendrier),\"/Jour \",JourCalendrier-DATE(YEAR(JourCalendrier),1,0)),CONCATENATE(\"Jour \",JourCalendrier-DATE(YEAR(JourCalendrier),1,0)))","v":"Jour 92"},{"$f":"IF(DAY(JourCalendrier)=1,CONCATENATE(\"Semaine \",WEEKNUM(JourCalendrier),\"/Jour \",JourCalendrier-DATE(YEAR(JourCalendrier),1,0)),CONCATENATE(\"Jour \",JourCalendrier-DATE(YEAR(JourCalendrier),1,0)))","v":"Jour 93"},{"$f":"IF(DAY(JourCalendrier)=1,CONCATENATE(\"Semaine \",WEEKNUM(JourCalendrier),\"/Jour \",JourCalendrier-DATE(YEAR(JourCalendrier),1,0)),CONCATENATE(\"Jour \",JourCalendrier-DATE(YEAR(JourCalendrier),1,0)))","v":"Jour 94"},{"$f":"IF(DAY(JourCalendrier)=1,CONCATENATE(\"Semaine \",WEEKNUM(JourCalendrier),\"/Jour \",JourCalendrier-DATE(YEAR(JourCalendrier),1,0)),CONCATENATE(\"Jour \",JourCalendrier-DATE(YEAR(JourCalendrier),1,0)))","v":"Jour 95"},{"$f":"IF(DAY(JourCalendrier)=1,CONCATENATE(\"Semaine \",WEEKNUM(JourCalendrier),\"/Jour \",JourCalendrier-DATE(YEAR(JourCalendrier),1,0)),CONCATENATE(\"Jour \",JourCalendrier-DATE(YEAR(JourCalendrier),1,0)))","v":"Jour 96"},{"$f":"IF(DAY(JourCalendrier)=1,CONCATENATE(\"Semaine \",WEEKNUM(JourCalendrier),\"/Jour \",JourCalendrier-DATE(YEAR(JourCalendrier),1,0)),CONCATENATE(\"Jour \",JourCalendrier-DATE(YEAR(JourCalendrier),1,0)))","v":"Jour 97"}]
[]
[null,null,{"$f":"JoursEtSemaines+DATE(AnnéeCivile,4,1)-WEEKDAY(DATE(AnnéeCivile,4,1),(DébutSemaine=\"LUN\")+1)+8","v":"2018-04-08"},"2018-04-09","2018-04-10","2018-04-11","2018-04-12","2018-04-13","2018-04-14"]
[null,null,{"$f":"IF(WEEKDAY(JourCalendrier)=DébutSemaine,CONCATENATE(\"Semaine \",WEEKNUM(JourCalendrier),\"/Jour \",JourCalendrier-DATE(YEAR(JourCalendrier),1,0)),CONCATENATE(\"Jour \",JourCalendrier-DATE(YEAR(JourCalendrier),1,0)))","v":"Jour 98"},{"$f":"IF(WEEKDAY(JourCalendrier)=DébutSemaine,CONCATENATE(\"Semaine \",WEEKNUM(JourCalendrier),\"/Jour \",JourCalendrier-DATE(YEAR(JourCalendrier),1,0)),CONCATENATE(\"Jour \",JourCalendrier-DATE(YEAR(JourCalendrier),1,0)))","v":"Jour 99"},{"$f":"IF(WEEKDAY(JourCalendrier)=DébutSemaine,CONCATENATE(\"Semaine \",WEEKNUM(JourCalendrier),\"/Jour \",JourCalendrier-DATE(YEAR(JourCalendrier),1,0)),CONCATENATE(\"Jour \",JourCalendrier-DATE(YEAR(JourCalendrier),1,0)))","v":"Jour 100"},{"$f":"IF(WEEKDAY(JourCalendrier)=DébutSemaine,CONCATENATE(\"Semaine \",WEEKNUM(JourCalendrier),\"/Jour \",JourCalendrier-DATE(YEAR(JourCalendrier),1,0)),CONCATENATE(\"Jour \",JourCalendrier-DATE(YEAR(JourCalendrier),1,0)))","v":"Jour 101"},{"$f":"IF(WEEKDAY(JourCalendrier)=DébutSemaine,CONCATENATE(\"Semaine \",WEEKNUM(JourCalendrier),\"/Jour \",JourCalendrier-DATE(YEAR(JourCalendrier),1,0)),CONCATENATE(\"Jour \",JourCalendrier-DATE(YEAR(JourCalendrier),1,0)))","v":"Jour 102"},{"$f":"IF(WEEKDAY(JourCalendrier)=DébutSemaine,CONCATENATE(\"Semaine \",WEEKNUM(JourCalendrier),\"/Jour \",JourCalendrier-DATE(YEAR(JourCalendrier),1,0)),CONCATENATE(\"Jour \",JourCalendrier-DATE(YEAR(JourCalendrier),1,0)))","v":"Jour 103"},{"$f":"IF(WEEKDAY(JourCalendrier)=DébutSemaine,CONCATENATE(\"Semaine \",WEEKNUM(JourCalendrier),\"/Jour \",JourCalendrier-DATE(YEAR(JourCalendrier),1,0)),CONCATENATE(\"Jour \",JourCalendrier-DATE(YEAR(JourCalendrier),1,0)))","v":"Jour 104"}]
[]
[null,null,{"$f":"JoursEtSemaines+DATE(AnnéeCivile,4,1)-WEEKDAY(DATE(AnnéeCivile,4,1),(DébutSemaine=\"LUN\")+1)+15","v":"2018-04-15"},"2018-04-16","2018-04-17","2018-04-18","2018-04-19","2018-04-20","2018-04-21"]
[null,null,{"$f":"IF(WEEKDAY(JourCalendrier)=DébutSemaine,CONCATENATE(\"Semaine \",WEEKNUM(JourCalendrier),\"/Jour \",JourCalendrier-DATE(YEAR(JourCalendrier),1,0)),CONCATENATE(\"Jour \",JourCalendrier-DATE(YEAR(JourCalendrier),1,0)))","v":"Jour 105"},{"$f":"IF(WEEKDAY(JourCalendrier)=DébutSemaine,CONCATENATE(\"Semaine \",WEEKNUM(JourCalendrier),\"/Jour \",JourCalendrier-DATE(YEAR(JourCalendrier),1,0)),CONCATENATE(\"Jour \",JourCalendrier-DATE(YEAR(JourCalendrier),1,0)))","v":"Jour 106"},{"$f":"IF(WEEKDAY(JourCalendrier)=DébutSemaine,CONCATENATE(\"Semaine \",WEEKNUM(JourCalendrier),\"/Jour \",JourCalendrier-DATE(YEAR(JourCalendrier),1,0)),CONCATENATE(\"Jour \",JourCalendrier-DATE(YEAR(JourCalendrier),1,0)))","v":"Jour 107"},{"$f":"IF(WEEKDAY(JourCalendrier)=DébutSemaine,CONCATENATE(\"Semaine \",WEEKNUM(JourCalendrier),\"/Jour \",JourCalendrier-DATE(YEAR(JourCalendrier),1,0)),CONCATENATE(\"Jour \",JourCalendrier-DATE(YEAR(JourCalendrier),1,0)))","v":"Jour 108"},{"$f":"IF(WEEKDAY(JourCalendrier)=DébutSemaine,CONCATENATE(\"Semaine \",WEEKNUM(JourCalendrier),\"/Jour \",JourCalendrier-DATE(YEAR(JourCalendrier),1,0)),CONCATENATE(\"Jour \",JourCalendrier-DATE(YEAR(JourCalendrier),1,0)))","v":"Jour 109"},{"$f":"IF(WEEKDAY(JourCalendrier)=DébutSemaine,CONCATENATE(\"Semaine \",WEEKNUM(JourCalendrier),\"/Jour \",JourCalendrier-DATE(YEAR(JourCalendrier),1,0)),CONCATENATE(\"Jour \",JourCalendrier-DATE(YEAR(JourCalendrier),1,0)))","v":"Jour 110"},{"$f":"IF(WEEKDAY(JourCalendrier)=DébutSemaine,CONCATENATE(\"Semaine \",WEEKNUM(JourCalendrier),\"/Jour \",JourCalendrier-DATE(YEAR(JourCalendrier),1,0)),CONCATENATE(\"Jour \",JourCalendrier-DATE(YEAR(JourCalendrier),1,0)))","v":"Jour 111"}]
[]
[null,null,{"$f":"JoursEtSemaines+DATE(AnnéeCivile,4,1)-WEEKDAY(DATE(AnnéeCivile,4,1),(DébutSemaine=\"LUN\")+1)+22","v":"2018-04-22"},"2018-04-23","2018-04-24","2018-04-25","2018-04-26","2018-04-27","2018-04-28"]
[null,null,{"$f":"IF(WEEKDAY(JourCalendrier)=DébutSemaine,CONCATENATE(\"Semaine \",WEEKNUM(JourCalendrier),\"/Jour \",JourCalendrier-DATE(YEAR(JourCalendrier),1,0)),CONCATENATE(\"Jour \",JourCalendrier-DATE(YEAR(JourCalendrier),1,0)))","v":"Jour 112"},{"$f":"IF(WEEKDAY(JourCalendrier)=DébutSemaine,CONCATENATE(\"Semaine \",WEEKNUM(JourCalendrier),\"/Jour \",JourCalendrier-DATE(YEAR(JourCalendrier),1,0)),CONCATENATE(\"Jour \",JourCalendrier-DATE(YEAR(JourCalendrier),1,0)))","v":"Jour 113"},{"$f":"IF(WEEKDAY(JourCalendrier)=DébutSemaine,CONCATENATE(\"Semaine \",WEEKNUM(JourCalendrier),\"/Jour \",JourCalendrier-DATE(YEAR(JourCalendrier),1,0)),CONCATENATE(\"Jour \",JourCalendrier-DATE(YEAR(JourCalendrier),1,0)))","v":"Jour 114"},{"$f":"IF(WEEKDAY(JourCalendrier)=DébutSemaine,CONCATENATE(\"Semaine \",WEEKNUM(JourCalendrier),\"/Jour \",JourCalendrier-DATE(YEAR(JourCalendrier),1,0)),CONCATENATE(\"Jour \",JourCalendrier-DATE(YEAR(JourCalendrier),1,0)))","v":"Jour 115"},{"$f":"IF(WEEKDAY(JourCalendrier)=DébutSemaine,CONCATENATE(\"Semaine \",WEEKNUM(JourCalendrier),\"/Jour \",JourCalendrier-DATE(YEAR(JourCalendrier),1,0)),CONCATENATE(\"Jour \",JourCalendrier-DATE(YEAR(JourCalendrier),1,0)))","v":"Jour 116"},{"$f":"IF(WEEKDAY(JourCalendrier)=DébutSemaine,CONCATENATE(\"Semaine \",WEEKNUM(JourCalendrier),\"/Jour \",JourCalendrier-DATE(YEAR(JourCalendrier),1,0)),CONCATENATE(\"Jour \",JourCalendrier-DATE(YEAR(JourCalendrier),1,0)))","v":"Jour 117"},{"$f":"IF(WEEKDAY(JourCalendrier)=DébutSemaine,CONCATENATE(\"Semaine \",WEEKNUM(JourCalendrier),\"/Jour \",JourCalendrier-DATE(YEAR(JourCalendrier),1,0)),CONCATENATE(\"Jour \",JourCalendrier-DATE(YEAR(JourCalendrier),1,0)))","v":"Jour 118"}]
[]
[null,null,{"$f":"JoursEtSemaines+DATE(AnnéeCivile,4,1)-WEEKDAY(DATE(AnnéeCivile,4,1),(DébutSemaine=\"LUN\")+1)+29","v":"2018-04-29"},"2018-04-30","2018-05-01","2018-05-02","2018-05-03","2018-05-04","2018-05-05"]
[null,null,{"$f":"IF(WEEKDAY(JourCalendrier)=DébutSemaine,CONCATENATE(\"Semaine \",WEEKNUM(JourCalendrier),\"/Jour \",JourCalendrier-DATE(YEAR(JourCalendrier),1,0)),CONCATENATE(\"Jour \",JourCalendrier-DATE(YEAR(JourCalendrier),1,0)))","v":"Jour 119"},{"$f":"IF(WEEKDAY(JourCalendrier)=DébutSemaine,CONCATENATE(\"Semaine \",WEEKNUM(JourCalendrier),\"/Jour \",JourCalendrier-DATE(YEAR(JourCalendrier),1,0)),CONCATENATE(\"Jour \",JourCalendrier-DATE(YEAR(JourCalendrier),1,0)))","v":"Jour 120"},{"$f":"IF(WEEKDAY(JourCalendrier)=DébutSemaine,CONCATENATE(\"Semaine \",WEEKNUM(JourCalendrier),\"/Jour \",JourCalendrier-DATE(YEAR(JourCalendrier),1,0)),CONCATENATE(\"Jour \",JourCalendrier-DATE(YEAR(JourCalendrier),1,0)))","v":"Jour 121"},{"$f":"IF(WEEKDAY(JourCalendrier)=DébutSemaine,CONCATENATE(\"Semaine \",WEEKNUM(JourCalendrier),\"/Jour \",JourCalendrier-DATE(YEAR(JourCalendrier),1,0)),CONCATENATE(\"Jour \",JourCalendrier-DATE(YEAR(JourCalendrier),1,0)))","v":"Jour 122"},{"$f":"IF(WEEKDAY(JourCalendrier)=DébutSemaine,CONCATENATE(\"Semaine \",WEEKNUM(JourCalendrier),\"/Jour \",JourCalendrier-DATE(YEAR(JourCalendrier),1,0)),CONCATENATE(\"Jour \",JourCalendrier-DATE(YEAR(JourCalendrier),1,0)))","v":"Jour 123"},{"$f":"IF(WEEKDAY(JourCalendrier)=DébutSemaine,CONCATENATE(\"Semaine \",WEEKNUM(JourCalendrier),\"/Jour \",JourCalendrier-DATE(YEAR(JourCalendrier),1,0)),CONCATENATE(\"Jour \",JourCalendrier-DATE(YEAR(JourCalendrier),1,0)))","v":"Jour 124"},{"$f":"IF(WEEKDAY(JourCalendrier)=DébutSemaine,CONCATENATE(\"Semaine \",WEEKNUM(JourCalendrier),\"/Jour \",JourCalendrier-DATE(YEAR(JourCalendrier),1,0)),CONCATENATE(\"Jour \",JourCalendrier-DATE(YEAR(JourCalendrier),1,0)))","v":"Jour 125"}]
[{"$nulls":4},"NOTES"]
[]
[null,null,{"$f":"JoursEtSemaines+DATE(AnnéeCivile,4,1)-WEEKDAY(DATE(AnnéeCivile,4,1),(DébutSemaine=\"LUN\")+1)+36","v":"2018-05-06"},"2018-05-07"]
[null,null,{"$f":"IF(WEEKDAY(JourCalendrier)=DébutSemaine,CONCATENATE(\"Semaine \",WEEKNUM(JourCalendrier),\"/Jour \",JourCalendrier-DATE(YEAR(JourCalendrier),1,0)),CONCATENATE(\"Jour \",JourCalendrier-DATE(YEAR(JourCalendrier),1,0)))","v":"Jour 126"},{"$f":"IF(WEEKDAY(JourCalendrier)=DébutSemaine,CONCATENATE(\"Semaine \",WEEKNUM(JourCalendrier),\"/Jour \",JourCalendrier-DATE(YEAR(JourCalendrier),1,0)),CONCATENATE(\"Jour \",JourCalendrier-DATE(YEAR(JourCalendrier),1,0)))","v":"Jour 127"}]

{"sheet":"MAI","index":4,"n_rows":20,"n_cols":9,"rows_kept":20,"merged":[[16,2,17,2],[17,4,19,8]]}
[null,"MAI",{"$f":"UPPER(TEXT(DébutSemaine,\"jjj\"))","v":"DIM"},{"$f":"UPPER(TEXT(D3,\"jjj\"))","v":"LUN"},"MAR","MER","JEU","VEN","SAM"]
[null,{"$f":"AnnéeCivile","v":2018}]
[null,null,{"$f":"JoursEtSemaines+DATE(AnnéeCivile,5,1)-WEEKDAY(DATE(AnnéeCivile,5,1),(DébutSemaine=\"LUN\")+1)+1","v":"2018-04-29"},"2018-04-30","2018-05-01","2018-05-02","2018-05-03","2018-05-04","2018-05-05"]
[null,null,{"$f":"IF(DAY(JourCalendrier)=1,CONCATENATE(\"Semaine \",WEEKNUM(JourCalendrier),\"/Jour \",JourCalendrier-DATE(YEAR(JourCalendrier),1,0)),CONCATENATE(\"Jour \",JourCalendrier-DATE(YEAR(JourCalendrier),1,0)))","v":"Jour 119"},{"$f":"IF(DAY(JourCalendrier)=1,CONCATENATE(\"Semaine \",WEEKNUM(JourCalendrier),\"/Jour \",JourCalendrier-DATE(YEAR(JourCalendrier),1,0)),CONCATENATE(\"Jour \",JourCalendrier-DATE(YEAR(JourCalendrier),1,0)))","v":"Jour 120"},{"$f":"IF(DAY(JourCalendrier)=1,CONCATENATE(\"Semaine \",WEEKNUM(JourCalendrier),\"/Jour \",JourCalendrier-DATE(YEAR(JourCalendrier),1,0)),CONCATENATE(\"Jour \",JourCalendrier-DATE(YEAR(JourCalendrier),1,0)))","v":"Semaine 18/Jour 121"},{"$f":"IF(DAY(JourCalendrier)=1,CONCATENATE(\"Semaine \",WEEKNUM(JourCalendrier),\"/Jour \",JourCalendrier-DATE(YEAR(JourCalendrier),1,0)),CONCATENATE(\"Jour \",JourCalendrier-DATE(YEAR(JourCalendrier),1,0)))","v":"Jour 122"},{"$f":"IF(DAY(JourCalendrier)=1,CONCATENATE(\"Semaine \",WEEKNUM(JourCalendrier),\"/Jour \",JourCalendrier-DATE(YEAR(JourCalendrier),1,0)),CONCATENATE(\"Jour \",JourCalendrier-DATE(YEAR(JourCalendrier),1,0)))","v":"Jour 123"},{"$f":"IF(DAY(JourCalendrier)=1,CONCATENATE(\"Semaine \",WEEKNUM(JourCalendrier),\"/Jour \",JourCalendrier-DATE(YEAR(JourCalendrier),1,0)),CONCATENATE(\"Jour \",JourCalendrier-DATE(YEAR(JourCalendrier),1,0)))","v":"Jour 124"},{"$f":"IF(DAY(JourCalendrier)=1,CONCATENATE(\"Semaine \",WEEKNUM(JourCalendrier),\"/Jour \",JourCalendrier-DATE(YEAR(JourCalendrier),1,0)),CONCATENATE(\"Jour \",JourCalendrier-DATE(YEAR(JourCalendrier),1,0)))","v":"Jour 125"}]
[]
[null,null,{"$f":"JoursEtSemaines+DATE(AnnéeCivile,5,1)-WEEKDAY(DATE(AnnéeCivile,5,1),(DébutSemaine=\"LUN\")+1)+8","v":"2018-05-06"},"2018-05-07","2018-05-08","2018-05-09","2018-05-10","2018-05-11","2018-05-12"]
[null,null,{"$f":"IF(WEEKDAY(JourCalendrier)=DébutSemaine,CONCATENATE(\"Semaine \",WEEKNUM(JourCalendrier),\"/Jour \",JourCalendrier-DATE(YEAR(JourCalendrier),1,0)),CONCATENATE(\"Jour \",JourCalendrier-DATE(YEAR(JourCalendrier),1,0)))","v":"Jour 126"},{"$f":"IF(WEEKDAY(JourCalendrier)=DébutSemaine,CONCATENATE(\"Semaine \",WEEKNUM(JourCalendrier),\"/Jour \",JourCalendrier-DATE(YEAR(JourCalendrier),1,0)),CONCATENATE(\"Jour \",JourCalendrier-DATE(YEAR(JourCalendrier),1,0)))","v":"Jour 127"},{"$f":"IF(WEEKDAY(JourCalendrier)=DébutSemaine,CONCATENATE(\"Semaine \",WEEKNUM(JourCalendrier),\"/Jour \",JourCalendrier-DATE(YEAR(JourCalendrier),1,0)),CONCATENATE(\"Jour \",JourCalendrier-DATE(YEAR(JourCalendrier),1,0)))","v":"Jour 128"},{"$f":"IF(WEEKDAY(JourCalendrier)=DébutSemaine,CONCATENATE(\"Semaine \",WEEKNUM(JourCalendrier),\"/Jour \",JourCalendrier-DATE(YEAR(JourCalendrier),1,0)),CONCATENATE(\"Jour \",JourCalendrier-DATE(YEAR(JourCalendrier),1,0)))","v":"Jour 129"},{"$f":"IF(WEEKDAY(JourCalendrier)=DébutSemaine,CONCATENATE(\"Semaine \",WEEKNUM(JourCalendrier),\"/Jour \",JourCalendrier-DATE(YEAR(JourCalendrier),1,0)),CONCATENATE(\"Jour \",JourCalendrier-DATE(YEAR(JourCalendrier),1,0)))","v":"Jour 130"},{"$f":"IF(WEEKDAY(JourCalendrier)=DébutSemaine,CONCATENATE(\"Semaine \",WEEKNUM(JourCalendrier),\"/Jour \",JourCalendrier-DATE(YEAR(JourCalendrier),1,0)),CONCATENATE(\"Jour \",JourCalendrier-DATE(YEAR(JourCalendrier),1,0)))","v":"Jour 131"},{"$f":"IF(WEEKDAY(JourCalendrier)=DébutSemaine,CONCATENATE(\"Semaine \",WEEKNUM(JourCalendrier),\"/Jour \",JourCalendrier-DATE(YEAR(JourCalendrier),1,0)),CONCATENATE(\"Jour \",JourCalendrier-DATE(YEAR(JourCalendrier),1,0)))","v":"Jour 132"}]
[]
[null,null,{"$f":"JoursEtSemaines+DATE(AnnéeCivile,5,1)-WEEKDAY(DATE(AnnéeCivile,5,1),(DébutSemaine=\"LUN\")+1)+15","v":"2018-05-13"},"2018-05-14","2018-05-15","2018-05-16","2018-05-17","2018-05-18","2018-05-19"]
[null,null,{"$f":"IF(WEEKDAY(JourCalendrier)=DébutSemaine,CONCATENATE(\"Semaine \",WEEKNUM(JourCalendrier),\"/Jour \",JourCalendrier-DATE(YEAR(JourCalendrier),1,0)),CONCATENATE(\"Jour \",JourCalendrier-DATE(YEAR(JourCalendrier),1,0)))","v":"Jour 133"},{"$f":"IF(WEEKDAY(JourCalendrier)=DébutSemaine,CONCATENATE(\"Semaine \",WEEKNUM(JourCalendrier),\"/Jour \",JourCalendrier-DATE(YEAR(JourCalendrier),1,0)),CONCATENATE(\"Jour \",JourCalendrier-DATE(YEAR(JourCalendrier),1,0)))","v":"Jour 134"},{"$f":"IF(WEEKDAY(JourCalendrier)=DébutSemaine,CONCATENATE(\"Semaine \",WEEKNUM(JourCalendrier),\"/Jour \",JourCalendrier-DATE(YEAR(JourCalendrier),1,0)),CONCATENATE(\"Jour \",JourCalendrier-DATE(YEAR(JourCalendrier),1,0)))","v":"Jour 135"},{"$f":"IF(WEEKDAY(JourCalendrier)=DébutSemaine,CONCATENATE(\"Semaine \",WEEKNUM(JourCalendrier),\"/Jour \",JourCalendrier-DATE(YEAR(JourCalendrier),1,0)),CONCATENATE(\"Jour \",JourCalendrier-DATE(YEAR(JourCalendrier),1,0)))","v":"Jour 136"},{"$f":"IF(WEEKDAY(JourCalendrier)=DébutSemaine,CONCATENATE(\"Semaine \",WEEKNUM(JourCalendrier),\"/Jour \",JourCalendrier-DATE(YEAR(JourCalendrier),1,0)),CONCATENATE(\"Jour \",JourCalendrier-DATE(YEAR(JourCalendrier),1,0)))","v":"Jour 137"},{"$f":"IF(WEEKDAY(JourCalendrier)=DébutSemaine,CONCATENATE(\"Semaine \",WEEKNUM(JourCalendrier),\"/Jour \",JourCalendrier-DATE(YEAR(JourCalendrier),1,0)),CONCATENATE(\"Jour \",JourCalendrier-DATE(YEAR(JourCalendrier),1,0)))","v":"Jour 138"},{"$f":"IF(WEEKDAY(JourCalendrier)=DébutSemaine,CONCATENATE(\"Semaine \",WEEKNUM(JourCalendrier),\"/Jour \",JourCalendrier-DATE(YEAR(JourCalendrier),1,0)),CONCATENATE(\"Jour \",JourCalendrier-DATE(YEAR(JourCalendrier),1,0)))","v":"Jour 139"}]
[]
[null,null,{"$f":"JoursEtSemaines+DATE(AnnéeCivile,5,1)-WEEKDAY(DATE(AnnéeCivile,5,1),(DébutSemaine=\"LUN\")+1)+22","v":"2018-05-20"},"2018-05-21","2018-05-22","2018-05-23","2018-05-24","2018-05-25","2018-05-26"]
[null,null,{"$f":"IF(WEEKDAY(JourCalendrier)=DébutSemaine,CONCATENATE(\"Semaine \",WEEKNUM(JourCalendrier),\"/Jour \",JourCalendrier-DATE(YEAR(JourCalendrier),1,0)),CONCATENATE(\"Jour \",JourCalendrier-DATE(YEAR(JourCalendrier),1,0)))","v":"Jour 140"},{"$f":"IF(WEEKDAY(JourCalendrier)=DébutSemaine,CONCATENATE(\"Semaine \",WEEKNUM(JourCalendrier),\"/Jour \",JourCalendrier-DATE(YEAR(JourCalendrier),1,0)),CONCATENATE(\"Jour \",JourCalendrier-DATE(YEAR(JourCalendrier),1,0)))","v":"Jour 141"},{"$f":"IF(WEEKDAY(JourCalendrier)=DébutSemaine,CONCATENATE(\"Semaine \",WEEKNUM(JourCalendrier),\"/Jour \",JourCalendrier-DATE(YEAR(JourCalendrier),1,0)),CONCATENATE(\"Jour \",JourCalendrier-DATE(YEAR(JourCalendrier),1,0)))","v":"Jour 142"},{"$f":"IF(WEEKDAY(JourCalendrier)=DébutSemaine,CONCATENATE(\"Semaine \",WEEKNUM(JourCalendrier),\"/Jour \",JourCalendrier-DATE(YEAR(JourCalendrier),1,0)),CONCATENATE(\"Jour \",JourCalendrier-DATE(YEAR(JourCalendrier),1,0)))","v":"Jour 143"},{"$f":"IF(WEEKDAY(JourCalendrier)=DébutSemaine,CONCATENATE(\"Semaine \",WEEKNUM(JourCalendrier),\"/Jour \",JourCalendrier-DATE(YEAR(JourCalendrier),1,0)),CONCATENATE(\"Jour \",JourCalendrier-DATE(YEAR(JourCalendrier),1,0)))","v":"Jour 144"},{"$f":"IF(WEEKDAY(JourCalendrier)=DébutSemaine,CONCATENATE(\"Semaine \",WEEKNUM(JourCalendrier),\"/Jour \",JourCalendrier-DATE(YEAR(JourCalendrier),1,0)),CONCATENATE(\"Jour \",JourCalendrier-DATE(YEAR(JourCalendrier),1,0)))","v":"Jour 145"},{"$f":"IF(WEEKDAY(JourCalendrier)=DébutSemaine,CONCATENATE(\"Semaine \",WEEKNUM(JourCalendrier),\"/Jour \",JourCalendrier-DATE(YEAR(JourCalendrier),1,0)),CONCATENATE(\"Jour \",JourCalendrier-DATE(YEAR(JourCalendrier),1,0)))","v":"Jour 146"}]
[]
[null,null,{"$f":"JoursEtSemaines+DATE(AnnéeCivile,5,1)-WEEKDAY(DATE(AnnéeCivile,5,1),(DébutSemaine=\"LUN\")+1)+29","v":"2018-05-27"},"2018-05-28","2018-05-29","2018-05-30","2018-05-31","2018-06-01","2018-06-02"]
[null,null,{"$f":"IF(WEEKDAY(JourCalendrier)=DébutSemaine,CONCATENATE(\"Semaine \",WEEKNUM(JourCalendrier),\"/Jour \",JourCalendrier-DATE(YEAR(JourCalendrier),1,0)),CONCATENATE(\"Jour \",JourCalendrier-DATE(YEAR(JourCalendrier),1,0)))","v":"Jour 147"},{"$f":"IF(WEEKDAY(JourCalendrier)=DébutSemaine,CONCATENATE(\"Semaine \",WEEKNUM(JourCalendrier),\"/Jour \",JourCalendrier-DATE(YEAR(JourCalendrier),1,0)),CONCATENATE(\"Jour \",JourCalendrier-DATE(YEAR(JourCalendrier),1,0)))","v":"Jour 148"},{"$f":"IF(WEEKDAY(JourCalendrier)=DébutSemaine,CONCATENATE(\"Semaine \",WEEKNUM(JourCalendrier),\"/Jour \",JourCalendrier-DATE(YEAR(JourCalendrier),1,0)),CONCATENATE(\"Jour \",JourCalendrier-DATE(YEAR(JourCalendrier),1,0)))","v":"Jour 149"},{"$f":"IF(WEEKDAY(JourCalendrier)=DébutSemaine,CONCATENATE(\"Semaine \",WEEKNUM(JourCalendrier),\"/Jour \",JourCalendrier-DATE(YEAR(JourCalendrier),1,0)),CONCATENATE(\"Jour \",JourCalendrier-DATE(YEAR(JourCalendrier),1,0)))","v":"Jour 150"},{"$f":"IF(WEEKDAY(JourCalendrier)=DébutSemaine,CONCATENATE(\"Semaine \",WEEKNUM(JourCalendrier),\"/Jour \",JourCalendrier-DATE(YEAR(JourCalendrier),1,0)),CONCATENATE(\"Jour \",JourCalendrier-DATE(YEAR(JourCalendrier),1,0)))","v":"Jour 151"},{"$f":"IF(WEEKDAY(JourCalendrier)=DébutSemaine,CONCATENATE(\"Semaine \",WEEKNUM(JourCalendrier),\"/Jour \",JourCalendrier-DATE(YEAR(JourCalendrier),1,0)),CONCATENATE(\"Jour \",JourCalendrier-DATE(YEAR(JourCalendrier),1,0)))","v":"Jour 152"},{"$f":"IF(WEEKDAY(JourCalendrier)=DébutSemaine,CONCATENATE(\"Semaine \",WEEKNUM(JourCalendrier),\"/Jour \",JourCalendrier-DATE(YEAR(JourCalendrier),1,0)),CONCATENATE(\"Jour \",JourCalendrier-DATE(YEAR(JourCalendrier),1,0)))","v":"Jour 153"}]
[{"$nulls":4},"NOTES"]
[]
[null,null,{"$f":"JoursEtSemaines+DATE(AnnéeCivile,5,1)-WEEKDAY(DATE(AnnéeCivile,5,1),(DébutSemaine=\"LUN\")+1)+36","v":"2018-06-03"},"2018-06-04"]
[null,null,{"$f":"IF(WEEKDAY(JourCalendrier)=DébutSemaine,CONCATENATE(\"Semaine \",WEEKNUM(JourCalendrier),\"/Jour \",JourCalendrier-DATE(YEAR(JourCalendrier),1,0)),CONCATENATE(\"Jour \",JourCalendrier-DATE(YEAR(JourCalendrier),1,0)))","v":"Jour 154"},{"$f":"IF(WEEKDAY(JourCalendrier)=DébutSemaine,CONCATENATE(\"Semaine \",WEEKNUM(JourCalendrier),\"/Jour \",JourCalendrier-DATE(YEAR(JourCalendrier),1,0)),CONCATENATE(\"Jour \",JourCalendrier-DATE(YEAR(JourCalendrier),1,0)))","v":"Jour 155"}]

{"sheet":"JUIN","index":5,"n_rows":20,"n_cols":9,"rows_kept":20,"merged":[[16,2,17,2],[17,4,19,8]]}
[null,"JUIN",{"$f":"UPPER(TEXT(DébutSemaine,\"jjj\"))","v":"DIM"},{"$f":"UPPER(TEXT(D3,\"jjj\"))","v":"LUN"},"MAR","MER","JEU","VEN","SAM"]
[null,{"$f":"AnnéeCivile","v":2018}]
[null,null,{"$f":"JoursEtSemaines+DATE(AnnéeCivile,6,1)-WEEKDAY(DATE(AnnéeCivile,6,1),(DébutSemaine=\"LUN\")+1)+1","v":"2018-05-27"},"2018-05-28","2018-05-29","2018-05-30","2018-05-31","2018-06-01","2018-06-02"]
[null,null,{"$f":"IF(DAY(JourCalendrier)=1,CONCATENATE(\"Semaine \",WEEKNUM(JourCalendrier),\"/Jour \",JourCalendrier-DATE(YEAR(JourCalendrier),1,0)),CONCATENATE(\"Jour \",JourCalendrier-DATE(YEAR(JourCalendrier),1,0)))","v":"Jour 147"},{"$f":"IF(DAY(JourCalendrier)=1,CONCATENATE(\"Semaine \",WEEKNUM(JourCalendrier),\"/Jour \",JourCalendrier-DATE(YEAR(JourCalendrier),1,0)),CONCATENATE(\"Jour \",JourCalendrier-DATE(YEAR(JourCalendrier),1,0)))","v":"Jour 148"},{"$f":"IF(DAY(JourCalendrier)=1,CONCATENATE(\"Semaine \",WEEKNUM(JourCalendrier),\"/Jour \",JourCalendrier-DATE(YEAR(JourCalendrier),1,0)),CONCATENATE(\"Jour \",JourCalendrier-DATE(YEAR(JourCalendrier),1,0)))","v":"Jour 149"},{"$f":"IF(DAY(JourCalendrier)=1,CONCATENATE(\"Semaine \",WEEKNUM(JourCalendrier),\"/Jour \",JourCalendrier-DATE(YEAR(JourCalendrier),1,0)),CONCATENATE(\"Jour \",JourCalendrier-DATE(YEAR(JourCalendrier),1,0)))","v":"Jour 150"},{"$f":"IF(DAY(JourCalendrier)=1,CONCATENATE(\"Semaine \",WEEKNUM(JourCalendrier),\"/Jour \",JourCalendrier-DATE(YEAR(JourCalendrier),1,0)),CONCATENATE(\"Jour \",JourCalendrier-DATE(YEAR(JourCalendrier),1,0)))","v":"Jour 151"},{"$f":"IF(DAY(JourCalendrier)=1,CONCATENATE(\"Semaine \",WEEKNUM(JourCalendrier),\"/Jour \",JourCalendrier-DATE(YEAR(JourCalendrier),1,0)),CONCATENATE(\"Jour \",JourCalendrier-DATE(YEAR(JourCalendrier),1,0)))","v":"Semaine 22/Jour 152"},{"$f":"IF(DAY(JourCalendrier)=1,CONCATENATE(\"Semaine \",WEEKNUM(JourCalendrier),\"/Jour \",JourCalendrier-DATE(YEAR(JourCalendrier),1,0)),CONCATENATE(\"Jour \",JourCalendrier-DATE(YEAR(JourCalendrier),1,0)))","v":"Jour 153"}]
[]
[null,null,{"$f":"JoursEtSemaines+DATE(AnnéeCivile,6,1)-WEEKDAY(DATE(AnnéeCivile,6,1),(DébutSemaine=\"LUN\")+1)+8","v":"2018-06-03"},"2018-06-04","2018-06-05","2018-06-06","2018-06-07","2018-06-08","2018-06-09"]
[null,null,{"$f":"IF(WEEKDAY(JourCalendrier)=DébutSemaine,CONCATENATE(\"Semaine \",WEEKNUM(JourCalendrier),\"/Jour \",JourCalendrier-DATE(YEAR(JourCalendrier),1,0)),CONCATENATE(\"Jour \",JourCalendrier-DATE(YEAR(JourCalendrier),1,0)))","v":"Jour 154"},{"$f":"IF(WEEKDAY(JourCalendrier)=DébutSemaine,CONCATENATE(\"Semaine \",WEEKNUM(JourCalendrier),\"/Jour \",JourCalendrier-DATE(YEAR(JourCalendrier),1,0)),CONCATENATE(\"Jour \",JourCalendrier-DATE(YEAR(JourCalendrier),1,0)))","v":"Jour 155"},{"$f":"IF(WEEKDAY(JourCalendrier)=DébutSemaine,CONCATENATE(\"Semaine \",WEEKNUM(JourCalendrier),\"/Jour \",JourCalendrier-DATE(YEAR(JourCalendrier),1,0)),CONCATENATE(\"Jour \",JourCalendrier-DATE(YEAR(JourCalendrier),1,0)))","v":"Jour 156"},{"$f":"IF(WEEKDAY(JourCalendrier)=DébutSemaine,CONCATENATE(\"Semaine \",WEEKNUM(JourCalendrier),\"/Jour \",JourCalendrier-DATE(YEAR(JourCalendrier),1,0)),CONCATENATE(\"Jour \",JourCalendrier-DATE(YEAR(JourCalendrier),1,0)))","v":"Jour 157"},{"$f":"IF(WEEKDAY(JourCalendrier)=DébutSemaine,CONCATENATE(\"Semaine \",WEEKNUM(JourCalendrier),\"/Jour \",JourCalendrier-DATE(YEAR(JourCalendrier),1,0)),CONCATENATE(\"Jour \",JourCalendrier-DATE(YEAR(JourCalendrier),1,0)))","v":"Jour 158"},{"$f":"IF(WEEKDAY(JourCalendrier)=DébutSemaine,CONCATENATE(\"Semaine \",WEEKNUM(JourCalendrier),\"/Jour \",JourCalendrier-DATE(YEAR(JourCalendrier),1,0)),CONCATENATE(\"Jour \",JourCalendrier-DATE(YEAR(JourCalendrier),1,0)))","v":"Jour 159"},{"$f":"IF(WEEKDAY(JourCalendrier)=DébutSemaine,CONCATENATE(\"Semaine \",WEEKNUM(JourCalendrier),\"/Jour \",JourCalendrier-DATE(YEAR(JourCalendrier),1,0)),CONCATENATE(\"Jour \",JourCalendrier-DATE(YEAR(JourCalendrier),1,0)))","v":"Jour 160"}]
[]
[null,null,{"$f":"JoursEtSemaines+DATE(AnnéeCivile,6,1)-WEEKDAY(DATE(AnnéeCivile,6,1),(DébutSemaine=\"LUN\")+1)+15","v":"2018-06-10"},"2018-06-11","2018-06-12","2018-06-13","2018-06-14","2018-06-15","2018-06-16"]
[null,null,{"$f":"IF(WEEKDAY(JourCalendrier)=DébutSemaine,CONCATENATE(\"Semaine \",WEEKNUM(JourCalendrier),\"/Jour \",JourCalendrier-DATE(YEAR(JourCalendrier),1,0)),CONCATENATE(\"Jour \",JourCalendrier-DATE(YEAR(JourCalendrier),1,0)))","v":"Jour 161"},{"$f":"IF(WEEKDAY(JourCalendrier)=DébutSemaine,CONCATENATE(\"Semaine \",WEEKNUM(JourCalendrier),\"/Jour \",JourCalendrier-DATE(YEAR(JourCalendrier),1,0)),CONCATENATE(\"Jour \",JourCalendrier-DATE(YEAR(JourCalendrier),1,0)))","v":"Jour 162"},{"$f":"IF(WEEKDAY(JourCalendrier)=DébutSemaine,CONCATENATE(\"Semaine \",WEEKNUM(JourCalendrier),\"/Jour \",JourCalendrier-DATE(YEAR(JourCalendrier),1,0)),CONCATENATE(\"Jour \",JourCalendrier-DATE(YEAR(JourCalendrier),1,0)))","v":"Jour 163"},{"$f":"IF(WEEKDAY(JourCalendrier)=DébutSemaine,CONCATENATE(\"Semaine \",WEEKNUM(JourCalendrier),\"/Jour \",JourCalendrier-DATE(YEAR(JourCalendrier),1,0)),CONCATENATE(\"Jour \",JourCalendrier-DATE(YEAR(JourCalendrier),1,0)))","v":"Jour 164"},{"$f":"IF(WEEKDAY(JourCalendrier)=DébutSemaine,CONCATENATE(\"Semaine \",WEEKNUM(JourCalendrier),\"/Jour \",JourCalendrier-DATE(YEAR(JourCalendrier),1,0)),CONCATENATE(\"Jour \",JourCalendrier-DATE(YEAR(JourCalendrier),1,0)))","v":"Jour 165"},{"$f":"IF(WEEKDAY(JourCalendrier)=DébutSemaine,CONCATENATE(\"Semaine \",WEEKNUM(JourCalendrier),\"/Jour \",JourCalendrier-DATE(YEAR(JourCalendrier),1,0)),CONCATENATE(\"Jour \",JourCalendrier-DATE(YEAR(JourCalendrier),1,0)))","v":"Jour 166"},{"$f":"IF(WEEKDAY(JourCalendrier)=DébutSemaine,CONCATENATE(\"Semaine \",WEEKNUM(JourCalendrier),\"/Jour \",JourCalendrier-DATE(YEAR(JourCalendrier),1,0)),CONCATENATE(\"Jour \",JourCalendrier-DATE(YEAR(JourCalendrier),1,0)))","v":"Jour 167"}]
[]
[null,null,{"$f":"JoursEtSemaines+DATE(AnnéeCivile,6,1)-WEEKDAY(DATE(AnnéeCivile,6,1),(DébutSemaine=\"LUN\")+1)+22","v":"2018-06-17"},"2018-06-18","2018-06-19","2018-06-20","2018-06-21","2018-06-22","2018-06-23"]
[null,null,{"$f":"IF(WEEKDAY(JourCalendrier)=DébutSemaine,CONCATENATE(\"Semaine \",WEEKNUM(JourCalendrier),\"/Jour \",JourCalendrier-DATE(YEAR(JourCalendrier),1,0)),CONCATENATE(\"Jour \",JourCalendrier-DATE(YEAR(JourCalendrier),1,0)))","v":"Jour 168"},{"$f":"IF(WEEKDAY(JourCalendrier)=DébutSemaine,CONCATENATE(\"Semaine \",WEEKNUM(JourCalendrier),\"/Jour \",JourCalendrier-DATE(YEAR(JourCalendrier),1,0)),CONCATENATE(\"Jour \",JourCalendrier-DATE(YEAR(JourCalendrier),1,0)))","v":"Jour 169"},{"$f":"IF(WEEKDAY(JourCalendrier)=DébutSemaine,CONCATENATE(\"Semaine \",WEEKNUM(JourCalendrier),\"/Jour \",JourCalendrier-DATE(YEAR(JourCalendrier),1,0)),CONCATENATE(\"Jour \",JourCalendrier-DATE(YEAR(JourCalendrier),1,0)))","v":"Jour 170"},{"$f":"IF(WEEKDAY(JourCalendrier)=DébutSemaine,CONCATENATE(\"Semaine \",WEEKNUM(JourCalendrier),\"/Jour \",JourCalendrier-DATE(YEAR(JourCalendrier),1,0)),CONCATENATE(\"Jour \",JourCalendrier-DATE(YEAR(JourCalendrier),1,0)))","v":"Jour 171"},{"$f":"IF(WEEKDAY(JourCalendrier)=DébutSemaine,CONCATENATE(\"Semaine \",WEEKNUM(JourCalendrier),\"/Jour \",JourCalendrier-DATE(YEAR(JourCalendrier),1,0)),CONCATENATE(\"Jour \",JourCalendrier-DATE(YEAR(JourCalendrier),1,0)))","v":"Jour 172"},{"$f":"IF(WEEKDAY(JourCalendrier)=DébutSemaine,CONCATENATE(\"Semaine \",WEEKNUM(JourCalendrier),\"/Jour \",JourCalendrier-DATE(YEAR(JourCalendrier),1,0)),CONCATENATE(\"Jour \",JourCalendrier-DATE(YEAR(JourCalendrier),1,0)))","v":"Jour 173"},{"$f":"IF(WEEKDAY(JourCalendrier)=DébutSemaine,CONCATENATE(\"Semaine \",WEEKNUM(JourCalendrier),\"/Jour \",JourCalendrier-DATE(YEAR(JourCalendrier),1,0)),CONCATENATE(\"Jour \",JourCalendrier-DATE(YEAR(JourCalendrier),1,0)))","v":"Jour 174"}]
[]
[null,null,{"$f":"JoursEtSemaines+DATE(AnnéeCivile,6,1)-WEEKDAY(DATE(AnnéeCivile,6,1),(DébutSemaine=\"LUN\")+1)+29","v":"2018-06-24"},"2018-06-25","2018-06-26","2018-06-27","2018-06-28","2018-06-29","2018-06-30"]
[null,null,{"$f":"IF(WEEKDAY(JourCalendrier)=DébutSemaine,CONCATENATE(\"Semaine \",WEEKNUM(JourCalendrier),\"/Jour \",JourCalendrier-DATE(YEAR(JourCalendrier),1,0)),CONCATENATE(\"Jour \",JourCalendrier-DATE(YEAR(JourCalendrier),1,0)))","v":"Jour 175"},{"$f":"IF(WEEKDAY(JourCalendrier)=DébutSemaine,CONCATENATE(\"Semaine \",WEEKNUM(JourCalendrier),\"/Jour \",JourCalendrier-DATE(YEAR(JourCalendrier),1,0)),CONCATENATE(\"Jour \",JourCalendrier-DATE(YEAR(JourCalendrier),1,0)))","v":"Jour 176"},{"$f":"IF(WEEKDAY(JourCalendrier)=DébutSemaine,CONCATENATE(\"Semaine \",WEEKNUM(JourCalendrier),\"/Jour \",JourCalendrier-DATE(YEAR(JourCalendrier),1,0)),CONCATENATE(\"Jour \",JourCalendrier-DATE(YEAR(JourCalendrier),1,0)))","v":"Jour 177"},{"$f":"IF(WEEKDAY(JourCalendrier)=DébutSemaine,CONCATENATE(\"Semaine \",WEEKNUM(JourCalendrier),\"/Jour \",JourCalendrier-DATE(YEAR(JourCalendrier),1,0)),CONCATENATE(\"Jour \",JourCalendrier-DATE(YEAR(JourCalendrier),1,0)))","v":"Jour 178"},{"$f":"IF(WEEKDAY(JourCalendrier)=DébutSemaine,CONCATENATE(\"Semaine \",WEEKNUM(JourCalendrier),\"/Jour \",JourCalendrier-DATE(YEAR(JourCalendrier),1,0)),CONCATENATE(\"Jour \",JourCalendrier-DATE(YEAR(JourCalendrier),1,0)))","v":"Jour 179"},{"$f":"IF(WEEKDAY(JourCalendrier)=DébutSemaine,CONCATENATE(\"Semaine \",WEEKNUM(JourCalendrier),\"/Jour \",JourCalendrier-DATE(YEAR(JourCalendrier),1,0)),CONCATENATE(\"Jour \",JourCalendrier-DATE(YEAR(JourCalendrier),1,0)))","v":"Jour 180"},{"$f":"IF(WEEKDAY(JourCalendrier)=DébutSemaine,CONCATENATE(\"Semaine \",WEEKNUM(JourCalendrier),\"/Jour \",JourCalendrier-DATE(YEAR(JourCalendrier),1,0)),CONCATENATE(\"Jour \",JourCalendrier-DATE(YEAR(JourCalendrier),1,0)))","v":"Jour 181"}]
[{"$nulls":4},"NOTES"]
[]
[null,null,{"$f":"JoursEtSemaines+DATE(AnnéeCivile,6,1)-WEEKDAY(DATE(AnnéeCivile,6,1),(DébutSemaine=\"LUN\")+1)+36","v":"2018-07-01"},"2018-07-02"]
[null,null,{"$f":"IF(WEEKDAY(JourCalendrier)=DébutSemaine,CONCATENATE(\"Semaine \",WEEKNUM(JourCalendrier),\"/Jour \",JourCalendrier-DATE(YEAR(JourCalendrier),1,0)),CONCATENATE(\"Jour \",JourCalendrier-DATE(YEAR(JourCalendrier),1,0)))","v":"Jour 182"},{"$f":"IF(WEEKDAY(JourCalendrier)=DébutSemaine,CONCATENATE(\"Semaine \",WEEKNUM(JourCalendrier),\"/Jour \",JourCalendrier-DATE(YEAR(JourCalendrier),1,0)),CONCATENATE(\"Jour \",JourCalendrier-DATE(YEAR(JourCalendrier),1,0)))","v":"Jour 183"}]

{"sheet":"JUIL.","index":6,"n_rows":20,"n_cols":9,"rows_kept":20,"merged":[[16,2,17,2],[17,4,19,8]]}
[null,"JUIL.",{"$f":"UPPER(TEXT(DébutSemaine,\"jjj\"))","v":"DIM"},{"$f":"UPPER(TEXT(D3,\"jjj\"))","v":"LUN"},"MAR","MER","JEU","VEN","SAM"]
[null,{"$f":"AnnéeCivile","v":2018}]
[null,null,{"$f":"JoursEtSemaines+DATE(AnnéeCivile,7,1)-WEEKDAY(DATE(AnnéeCivile,7,1),(DébutSemaine=\"LUN\")+1)+1","v":"2018-07-01"},"2018-07-02","2018-07-03","2018-07-04","2018-07-05","2018-07-06","2018-07-07"]
[null,null,{"$f":"IF(DAY(JourCalendrier)=1,CONCATENATE(\"Semaine \",WEEKNUM(JourCalendrier),\"/Jour \",JourCalendrier-DATE(YEAR(JourCalendrier),1,0)),CONCATENATE(\"Jour \",JourCalendrier-DATE(YEAR(JourCalendrier),1,0)))","v":"Semaine 27/Jour 182"},{"$f":"IF(DAY(JourCalendrier)=1,CONCATENATE(\"Semaine \",WEEKNUM(JourCalendrier),\"/Jour \",JourCalendrier-DATE(YEAR(JourCalendrier),1,0)),CONCATENATE(\"Jour \",JourCalendrier-DATE(YEAR(JourCalendrier),1,0)))","v":"Jour 183"},{"$f":"IF(DAY(JourCalendrier)=1,CONCATENATE(\"Semaine \",WEEKNUM(JourCalendrier),\"/Jour \",JourCalendrier-DATE(YEAR(JourCalendrier),1,0)),CONCATENATE(\"Jour \",JourCalendrier-DATE(YEAR(JourCalendrier),1,0)))","v":"Jour 184"},{"$f":"IF(DAY(JourCalendrier)=1,CONCATENATE(\"Semaine \",WEEKNUM(JourCalendrier),\"/Jour \",JourCalendrier-DATE(YEAR(JourCalendrier),1,0)),CONCATENATE(\"Jour \",JourCalendrier-DATE(YEAR(JourCalendrier),1,0)))","v":"Jour 185"},{"$f":"IF(DAY(JourCalendrier)=1,CONCATENATE(\"Semaine \",WEEKNUM(JourCalendrier),\"/Jour \",JourCalendrier-DATE(YEAR(JourCalendrier),1,0)),CONCATENATE(\"Jour \",JourCalendrier-DATE(YEAR(JourCalendrier),1,0)))","v":"Jour 186"},{"$f":"IF(DAY(JourCalendrier)=1,CONCATENATE(\"Semaine \",WEEKNUM(JourCalendrier),\"/Jour \",JourCalendrier-DATE(YEAR(JourCalendrier),1,0)),CONCATENATE(\"Jour \",JourCalendrier-DATE(YEAR(JourCalendrier),1,0)))","v":"Jour 187"},{"$f":"IF(DAY(JourCalendrier)=1,CONCATENATE(\"Semaine \",WEEKNUM(JourCalendrier),\"/Jour \",JourCalendrier-DATE(YEAR(JourCalendrier),1,0)),CONCATENATE(\"Jour \",JourCalendrier-DATE(YEAR(JourCalendrier),1,0)))","v":"Jour 188"}]
[]
[null,null,{"$f":"JoursEtSemaines+DATE(AnnéeCivile,7,1)-WEEKDAY(DATE(AnnéeCivile,7,1),(DébutSemaine=\"LUN\")+1)+8","v":"2018-07-08"},"2018-07-09","2018-07-10","2018-07-11","2018-07-12","2018-07-13","2018-07-14"]
[null,null,{"$f":"IF(WEEKDAY(JourCalendrier)=DébutSemaine,CONCATENATE(\"Semaine \",WEEKNUM(JourCalendrier),\"/Jour \",JourCalendrier-DATE(YEAR(JourCalendrier),1,0)),CONCATENATE(\"Jour \",JourCalendrier-DATE(YEAR(JourCalendrier),1,0)))","v":"Jour 189"},{"$f":"IF(WEEKDAY(JourCalendrier)=DébutSemaine,CONCATENATE(\"Semaine \",WEEKNUM(JourCalendrier),\"/Jour \",JourCalendrier-DATE(YEAR(JourCalendrier),1,0)),CONCATENATE(\"Jour \",JourCalendrier-DATE(YEAR(JourCalendrier),1,0)))","v":"Jour 190"},{"$f":"IF(WEEKDAY(JourCalendrier)=DébutSemaine,CONCATENATE(\"Semaine \",WEEKNUM(JourCalendrier),\"/Jour \",JourCalendrier-DATE(YEAR(JourCalendrier),1,0)),CONCATENATE(\"Jour \",JourCalendrier-DATE(YEAR(JourCalendrier),1,0)))","v":"Jour 191"},{"$f":"IF(WEEKDAY(JourCalendrier)=DébutSemaine,CONCATENATE(\"Semaine \",WEEKNUM(JourCalendrier),\"/Jour \",JourCalendrier-DATE(YEAR(JourCalendrier),1,0)),CONCATENATE(\"Jour \",JourCalendrier-DATE(YEAR(JourCalendrier),1,0)))","v":"Jour 192"},{"$f":"IF(WEEKDAY(JourCalendrier)=DébutSemaine,CONCATENATE(\"Semaine \",WEEKNUM(JourCalendrier),\"/Jour \",JourCalendrier-DATE(YEAR(JourCalendrier),1,0)),CONCATENATE(\"Jour \",JourCalendrier-DATE(YEAR(JourCalendrier),1,0)))","v":"Jour 193"},{"$f":"IF(WEEKDAY(JourCalendrier)=DébutSemaine,CONCATENATE(\"Semaine \",WEEKNUM(JourCalendrier),\"/Jour \",JourCalendrier-DATE(YEAR(JourCalendrier),1,0)),CONCATENATE(\"Jour \",JourCalendrier-DATE(YEAR(JourCalendrier),1,0)))","v":"Jour 194"},{"$f":"IF(WEEKDAY(JourCalendrier)=DébutSemaine,CONCATENATE(\"Semaine \",WEEKNUM(JourCalendrier),\"/Jour \",JourCalendrier-DATE(YEAR(JourCalendrier),1,0)),CONCATENATE(\"Jour \",JourCalendrier-DATE(YEAR(JourCalendrier),1,0)))","v":"Jour 195"}]
[]
[null,null,{"$f":"JoursEtSemaines+DATE(AnnéeCivile,7,1)-WEEKDAY(DATE(AnnéeCivile,7,1),(DébutSemaine=\"LUN\")+1)+15","v":"2018-07-15"},"2018-07-16","2018-07-17","2018-07-18","2018-07-19","2018-07-20","2018-07-21"]
[null,null,{"$f":"IF(WEEKDAY(JourCalendrier)=DébutSemaine,CONCATENATE(\"Semaine \",WEEKNUM(JourCalendrier),\"/Jour \",JourCalendrier-DATE(YEAR(JourCalendrier),1,0)),CONCATENATE(\"Jour \",JourCalendrier-DATE(YEAR(JourCalendrier),1,0)))","v":"Jour 196"},{"$f":"IF(WEEKDAY(JourCalendrier)=DébutSemaine,CONCATENATE(\"Semaine \",WEEKNUM(JourCalendrier),\"/Jour \",JourCalendrier-DATE(YEAR(JourCalendrier),1,0)),CONCATENATE(\"Jour \",JourCalendrier-DATE(YEAR(JourCalendrier),1,0)))","v":"Jour 197"},{"$f":"IF(WEEKDAY(JourCalendrier)=DébutSemaine,CONCATENATE(\"Semaine \",WEEKNUM(JourCalendrier),\"/Jour \",JourCalendrier-DATE(YEAR(JourCalendrier),1,0)),CONCATENATE(\"Jour \",JourCalendrier-DATE(YEAR(JourCalendrier),1,0)))","v":"Jour 198"},{"$f":"IF(WEEKDAY(JourCalendrier)=DébutSemaine,CONCATENATE(\"Semaine \",WEEKNUM(JourCalendrier),\"/Jour \",JourCalendrier-DATE(YEAR(JourCalendrier),1,0)),CONCATENATE(\"Jour \",JourCalendrier-DATE(YEAR(JourCalendrier),1,0)))","v":"Jour 199"},{"$f":"IF(WEEKDAY(JourCalendrier)=DébutSemaine,CONCATENATE(\"Semaine \",WEEKNUM(JourCalendrier),\"/Jour \",JourCalendrier-DATE(YEAR(JourCalendrier),1,0)),CONCATENATE(\"Jour \",JourCalendrier-DATE(YEAR(JourCalendrier),1,0)))","v":"Jour 200"},{"$f":"IF(WEEKDAY(JourCalendrier)=DébutSemaine,CONCATENATE(\"Semaine \",WEEKNUM(JourCalendrier),\"/Jour \",JourCalendrier-DATE(YEAR(JourCalendrier),1,0)),CONCATENATE(\"Jour \",JourCalendrier-DATE(YEAR(JourCalendrier),1,0)))","v":"Jour 201"},{"$f":"IF(WEEKDAY(JourCalendrier)=DébutSemaine,CONCATENATE(\"Semaine \",WEEKNUM(JourCalendrier),\"/Jour \",JourCalendrier-DATE(YEAR(JourCalendrier),1,0)),CONCATENATE(\"Jour \",JourCalendrier-DATE(YEAR(JourCalendrier),1,0)))","v":"Jour 202"}]
[]
[null,null,{"$f":"JoursEtSemaines+DATE(AnnéeCivile,7,1)-WEEKDAY(DATE(AnnéeCivile,7,1),(DébutSemaine=\"LUN\")+1)+22","v":"2018-07-22"},"2018-07-23","2018-07-24","2018-07-25","2018-07-26","2018-07-27","2018-07-28"]
[null,null,{"$f":"IF(WEEKDAY(JourCalendrier)=DébutSemaine,CONCATENATE(\"Semaine \",WEEKNUM(JourCalendrier),\"/Jour \",JourCalendrier-DATE(YEAR(JourCalendrier),1,0)),CONCATENATE(\"Jour \",JourCalendrier-DATE(YEAR(JourCalendrier),1,0)))","v":"Jour 203"},{"$f":"IF(WEEKDAY(JourCalendrier)=DébutSemaine,CONCATENATE(\"Semaine \",WEEKNUM(JourCalendrier),\"/Jour \",JourCalendrier-DATE(YEAR(JourCalendrier),1,0)),CONCATENATE(\"Jour \",JourCalendrier-DATE(YEAR(JourCalendrier),1,0)))","v":"Jour 204"},{"$f":"IF(WEEKDAY(JourCalendrier)=DébutSemaine,CONCATENATE(\"Semaine \",WEEKNUM(JourCalendrier),\"/Jour \",JourCalendrier-DATE(YEAR(JourCalendrier),1,0)),CONCATENATE(\"Jour \",JourCalendrier-DATE(YEAR(JourCalendrier),1,0)))","v":"Jour 205"},{"$f":"IF(WEEKDAY(JourCalendrier)=DébutSemaine,CONCATENATE(\"Semaine \",WEEKNUM(JourCalendrier),\"/Jour \",JourCalendrier-DATE(YEAR(JourCalendrier),1,0)),CONCATENATE(\"Jour \",JourCalendrier-DATE(YEAR(JourCalendrier),1,0)))","v":"Jour 206"},{"$f":"IF(WEEKDAY(JourCalendrier)=DébutSemaine,CONCATENATE(\"Semaine \",WEEKNUM(JourCalendrier),\"/Jour \",JourCalendrier-DATE(YEAR(JourCalendrier),1,0)),CONCATENATE(\"Jour \",JourCalendrier-DATE(YEAR(JourCalendrier),1,0)))","v":"Jour 207"},{"$f":"IF(WEEKDAY(JourCalendrier)=DébutSemaine,CONCATENATE(\"Semaine \",WEEKNUM(JourCalendrier),\"/Jour \",JourCalendrier-DATE(YEAR(JourCalendrier),1,0)),CONCATENATE(\"Jour \",JourCalendrier-DATE(YEAR(JourCalendrier),1,0)))","v":"Jour 208"},{"$f":"IF(WEEKDAY(JourCalendrier)=DébutSemaine,CONCATENATE(\"Semaine \",WEEKNUM(JourCalendrier),\"/Jour \",JourCalendrier-DATE(YEAR(JourCalendrier),1,0)),CONCATENATE(\"Jour \",JourCalendrier-DATE(YEAR(JourCalendrier),1,0)))","v":"Jour 209"}]
[]
[null,null,{"$f":"JoursEtSemaines+DATE(AnnéeCivile,7,1)-WEEKDAY(DATE(AnnéeCivile,7,1),(DébutSemaine=\"LUN\")+1)+29","v":"2018-07-29"},"2018-07-30","2018-07-31","2018-08-01","2018-08-02","2018-08-03","2018-08-04"]
[null,null,{"$f":"IF(WEEKDAY(JourCalendrier)=DébutSemaine,CONCATENATE(\"Semaine \",WEEKNUM(JourCalendrier),\"/Jour \",JourCalendrier-DATE(YEAR(JourCalendrier),1,0)),CONCATENATE(\"Jour \",JourCalendrier-DATE(YEAR(JourCalendrier),1,0)))","v":"Jour 210"},{"$f":"IF(WEEKDAY(JourCalendrier)=DébutSemaine,CONCATENATE(\"Semaine \",WEEKNUM(JourCalendrier),\"/Jour \",JourCalendrier-DATE(YEAR(JourCalendrier),1,0)),CONCATENATE(\"Jour \",JourCalendrier-DATE(YEAR(JourCalendrier),1,0)))","v":"Jour 211"},{"$f":"IF(WEEKDAY(JourCalendrier)=DébutSemaine,CONCATENATE(\"Semaine \",WEEKNUM(JourCalendrier),\"/Jour \",JourCalendrier-DATE(YEAR(JourCalendrier),1,0)),CONCATENATE(\"Jour \",JourCalendrier-DATE(YEAR(JourCalendrier),1,0)))","v":"Jour 212"},{"$f":"IF(WEEKDAY(JourCalendrier)=DébutSemaine,CONCATENATE(\"Semaine \",WEEKNUM(JourCalendrier),\"/Jour \",JourCalendrier-DATE(YEAR(JourCalendrier),1,0)),CONCATENATE(\"Jour \",JourCalendrier-DATE(YEAR(JourCalendrier),1,0)))","v":"Jour 213"},{"$f":"IF(WEEKDAY(JourCalendrier)=DébutSemaine,CONCATENATE(\"Semaine \",WEEKNUM(JourCalendrier),\"/Jour \",JourCalendrier-DATE(YEAR(JourCalendrier),1,0)),CONCATENATE(\"Jour \",JourCalendrier-DATE(YEAR(JourCalendrier),1,0)))","v":"Jour 214"},{"$f":"IF(WEEKDAY(JourCalendrier)=DébutSemaine,CONCATENATE(\"Semaine \",WEEKNUM(JourCalendrier),\"/Jour \",JourCalendrier-DATE(YEAR(JourCalendrier),1,0)),CONCATENATE(\"Jour \",JourCalendrier-DATE(YEAR(JourCalendrier),1,0)))","v":"Jour 215"},{"$f":"IF(WEEKDAY(JourCalendrier)=DébutSemaine,CONCATENATE(\"Semaine \",WEEKNUM(JourCalendrier),\"/Jour \",JourCalendrier-DATE(YEAR(JourCalendrier),1,0)),CONCATENATE(\"Jour \",JourCalendrier-DATE(YEAR(JourCalendrier),1,0)))","v":"Jour 216"}]
[{"$nulls":4},"NOTES"]
[]
[null,null,{"$f":"JoursEtSemaines+DATE(AnnéeCivile,7,1)-WEEKDAY(DATE(AnnéeCivile,7,1),(DébutSemaine=\"LUN\")+1)+36","v":"2018-08-05"},"2018-08-06"]
[null,null,{"$f":"IF(WEEKDAY(JourCalendrier)=DébutSemaine,CONCATENATE(\"Semaine \",WEEKNUM(JourCalendrier),\"/Jour \",JourCalendrier-DATE(YEAR(JourCalendrier),1,0)),CONCATENATE(\"Jour \",JourCalendrier-DATE(YEAR(JourCalendrier),1,0)))","v":"Jour 217"},{"$f":"IF(WEEKDAY(JourCalendrier)=DébutSemaine,CONCATENATE(\"Semaine \",WEEKNUM(JourCalendrier),\"/Jour \",JourCalendrier-DATE(YEAR(JourCalendrier),1,0)),CONCATENATE(\"Jour \",JourCalendrier-DATE(YEAR(JourCalendrier),1,0)))","v":"Jour 218"}]

{"sheet":"AOÛT","index":7,"n_rows":20,"n_cols":9,"rows_kept":20,"merged":[[16,2,17,2],[17,4,19,8]]}
[null,"AOÛT",{"$f":"UPPER(TEXT(DébutSemaine,\"jjj\"))","v":"DIM"},{"$f":"UPPER(TEXT(D3,\"jjj\"))","v":"LUN"},"MAR","MER","JEU","VEN","SAM"]
[null,{"$f":"AnnéeCivile","v":2018}]
[null,null,{"$f":"JoursEtSemaines+DATE(AnnéeCivile,8,1)-WEEKDAY(DATE(AnnéeCivile,8,1),(DébutSemaine=\"LUN\")+1)+1","v":"2018-07-29"},"2018-07-30","2018-07-31","2018-08-01","2018-08-02","2018-08-03","2018-08-04"]
[null,null,{"$f":"IF(DAY(JourCalendrier)=1,CONCATENATE(\"Semaine \",WEEKNUM(JourCalendrier),\"/Jour \",JourCalendrier-DATE(YEAR(JourCalendrier),1,0)),CONCATENATE(\"Jour \",JourCalendrier-DATE(YEAR(JourCalendrier),1,0)))","v":"Jour 210"},{"$f":"IF(DAY(JourCalendrier)=1,CONCATENATE(\"Semaine \",WEEKNUM(JourCalendrier),\"/Jour \",JourCalendrier-DATE(YEAR(JourCalendrier),1,0)),CONCATENATE(\"Jour \",JourCalendrier-DATE(YEAR(JourCalendrier),1,0)))","v":"Jour 211"},{"$f":"IF(DAY(JourCalendrier)=1,CONCATENATE(\"Semaine \",WEEKNUM(JourCalendrier),\"/Jour \",JourCalendrier-DATE(YEAR(JourCalendrier),1,0)),CONCATENATE(\"Jour \",JourCalendrier-DATE(YEAR(JourCalendrier),1,0)))","v":"Jour 212"},{"$f":"IF(DAY(JourCalendrier)=1,CONCATENATE(\"Semaine \",WEEKNUM(JourCalendrier),\"/Jour \",JourCalendrier-DATE(YEAR(JourCalendrier),1,0)),CONCATENATE(\"Jour \",JourCalendrier-DATE(YEAR(JourCalendrier),1,0)))","v":"Semaine 31/Jour 213"},{"$f":"IF(DAY(JourCalendrier)=1,CONCATENATE(\"Semaine \",WEEKNUM(JourCalendrier),\"/Jour \",JourCalendrier-DATE(YEAR(JourCalendrier),1,0)),CONCATENATE(\"Jour \",JourCalendrier-DATE(YEAR(JourCalendrier),1,0)))","v":"Jour 214"},{"$f":"IF(DAY(JourCalendrier)=1,CONCATENATE(\"Semaine \",WEEKNUM(JourCalendrier),\"/Jour \",JourCalendrier-DATE(YEAR(JourCalendrier),1,0)),CONCATENATE(\"Jour \",JourCalendrier-DATE(YEAR(JourCalendrier),1,0)))","v":"Jour 215"},{"$f":"IF(DAY(JourCalendrier)=1,CONCATENATE(\"Semaine \",WEEKNUM(JourCalendrier),\"/Jour \",JourCalendrier-DATE(YEAR(JourCalendrier),1,0)),CONCATENATE(\"Jour \",JourCalendrier-DATE(YEAR(JourCalendrier),1,0)))","v":"Jour 216"}]
[]
[null,null,{"$f":"JoursEtSemaines+DATE(AnnéeCivile,8,1)-WEEKDAY(DATE(AnnéeCivile,8,1),(DébutSemaine=\"LUN\")+1)+8","v":"2018-08-05"},"2018-08-06","2018-08-07","2018-08-08","2018-08-09","2018-08-10","2018-08-11"]
[null,null,{"$f":"IF(WEEKDAY(JourCalendrier)=DébutSemaine,CONCATENATE(\"Semaine \",WEEKNUM(JourCalendrier),\"/Jour \",JourCalendrier-DATE(YEAR(JourCalendrier),1,0)),CONCATENATE(\"Jour \",JourCalendrier-DATE(YEAR(JourCalendrier),1,0)))","v":"Jour 217"},{"$f":"IF(WEEKDAY(JourCalendrier)=DébutSemaine,CONCATENATE(\"Semaine \",WEEKNUM(JourCalendrier),\"/Jour \",JourCalendrier-DATE(YEAR(JourCalendrier),1,0)),CONCATENATE(\"Jour \",JourCalendrier-DATE(YEAR(JourCalendrier),1,0)))","v":"Jour 218"},{"$f":"IF(WEEKDAY(JourCalendrier)=DébutSemaine,CONCATENATE(\"Semaine \",WEEKNUM(JourCalendrier),\"/Jour \",JourCalendrier-DATE(YEAR(JourCalendrier),1,0)),CONCATENATE(\"Jour \",JourCalendrier-DATE(YEAR(JourCalendrier),1,0)))","v":"Jour 219"},{"$f":"IF(WEEKDAY(JourCalendrier)=DébutSemaine,CONCATENATE(\"Semaine \",WEEKNUM(JourCalendrier),\"/Jour \",JourCalendrier-DATE(YEAR(JourCalendrier),1,0)),CONCATENATE(\"Jour \",JourCalendrier-DATE(YEAR(JourCalendrier),1,0)))","v":"Jour 220"},{"$f":"IF(WEEKDAY(JourCalendrier)=DébutSemaine,CONCATENATE(\"Semaine \",WEEKNUM(JourCalendrier),\"/Jour \",JourCalendrier-DATE(YEAR(JourCalendrier),1,0)),CONCATENATE(\"Jour \",JourCalendrier-DATE(YEAR(JourCalendrier),1,0)))","v":"Jour 221"},{"$f":"IF(WEEKDAY(JourCalendrier)=DébutSemaine,CONCATENATE(\"Semaine \",WEEKNUM(JourCalendrier),\"/Jour \",JourCalendrier-DATE(YEAR(JourCalendrier),1,0)),CONCATENATE(\"Jour \",JourCalendrier-DATE(YEAR(JourCalendrier),1,0)))","v":"Jour 222"},{"$f":"IF(WEEKDAY(JourCalendrier)=DébutSemaine,CONCATENATE(\"Semaine \",WEEKNUM(JourCalendrier),\"/Jour \",JourCalendrier-DATE(YEAR(JourCalendrier),1,0)),CONCATENATE(\"Jour \",JourCalendrier-DATE(YEAR(JourCalendrier),1,0)))","v":"Jour 223"}]
[]
[null,null,{"$f":"JoursEtSemaines+DATE(AnnéeCivile,8,1)-WEEKDAY(DATE(AnnéeCivile,8,1),(DébutSemaine=\"LUN\")+1)+15","v":"2018-08-12"},"2018-08-13","2018-08-14","2018-08-15","2018-08-16","2018-08-17","2018-08-18"]
[null,null,{"$f":"IF(WEEKDAY(JourCalendrier)=DébutSemaine,CONCATENATE(\"Semaine \",WEEKNUM(JourCalendrier),\"/Jour \",JourCalendrier-DATE(YEAR(JourCalendrier),1,0)),CONCATENATE(\"Jour \",JourCalendrier-DATE(YEAR(JourCalendrier),1,0)))","v":"Jour 224"},{"$f":"IF(WEEKDAY(JourCalendrier)=DébutSemaine,CONCATENATE(\"Semaine \",WEEKNUM(JourCalendrier),\"/Jour \",JourCalendrier-DATE(YEAR(JourCalendrier),1,0)),CONCATENATE(\"Jour \",JourCalendrier-DATE(YEAR(JourCalendrier),1,0)))","v":"Jour 225"},{"$f":"IF(WEEKDAY(JourCalendrier)=DébutSemaine,CONCATENATE(\"Semaine \",WEEKNUM(JourCalendrier),\"/Jour \",JourCalendrier-DATE(YEAR(JourCalendrier),1,0)),CONCATENATE(\"Jour \",JourCalendrier-DATE(YEAR(JourCalendrier),1,0)))","v":"Jour 226"},{"$f":"IF(WEEKDAY(JourCalendrier)=DébutSemaine,CONCATENATE(\"Semaine \",WEEKNUM(JourCalendrier),\"/Jour \",JourCalendrier-DATE(YEAR(JourCalendrier),1,0)),CONCATENATE(\"Jour \",JourCalendrier-DATE(YEAR(JourCalendrier),1,0)))","v":"Jour 227"},{"$f":"IF(WEEKDAY(JourCalendrier)=DébutSemaine,CONCATENATE(\"Semaine \",WEEKNUM(JourCalendrier),\"/Jour \",JourCalendrier-DATE(YEAR(JourCalendrier),1,0)),CONCATENATE(\"Jour \",JourCalendrier-DATE(YEAR(JourCalendrier),1,0)))","v":"Jour 228"},{"$f":"IF(WEEKDAY(JourCalendrier)=DébutSemaine,CONCATENATE(\"Semaine \",WEEKNUM(JourCalendrier),\"/Jour \",JourCalendrier-DATE(YEAR(JourCalendrier),1,0)),CONCATENATE(\"Jour \",JourCalendrier-DATE(YEAR(JourCalendrier),1,0)))","v":"Jour 229"},{"$f":"IF(WEEKDAY(JourCalendrier)=DébutSemaine,CONCATENATE(\"Semaine \",WEEKNUM(JourCalendrier),\"/Jour \",JourCalendrier-DATE(YEAR(JourCalendrier),1,0)),CONCATENATE(\"Jour \",JourCalendrier-DATE(YEAR(JourCalendrier),1,0)))","v":"Jour 230"}]
[]
[null,null,{"$f":"JoursEtSemaines+DATE(AnnéeCivile,8,1)-WEEKDAY(DATE(AnnéeCivile,8,1),(DébutSemaine=\"LUN\")+1)+22","v":"2018-08-19"},"2018-08-20","2018-08-21","2018-08-22","2018-08-23","2018-08-24","2018-08-25"]
[null,null,{"$f":"IF(WEEKDAY(JourCalendrier)=DébutSemaine,CONCATENATE(\"Semaine \",WEEKNUM(JourCalendrier),\"/Jour \",JourCalendrier-DATE(YEAR(JourCalendrier),1,0)),CONCATENATE(\"Jour \",JourCalendrier-DATE(YEAR(JourCalendrier),1,0)))","v":"Jour 231"},{"$f":"IF(WEEKDAY(JourCalendrier)=DébutSemaine,CONCATENATE(\"Semaine \",WEEKNUM(JourCalendrier),\"/Jour \",JourCalendrier-DATE(YEAR(JourCalendrier),1,0)),CONCATENATE(\"Jour \",JourCalendrier-DATE(YEAR(JourCalendrier),1,0)))","v":"Jour 232"},{"$f":"IF(WEEKDAY(JourCalendrier)=DébutSemaine,CONCATENATE(\"Semaine \",WEEKNUM(JourCalendrier),\"/Jour \",JourCalendrier-DATE(YEAR(JourCalendrier),1,0)),CONCATENATE(\"Jour \",JourCalendrier-DATE(YEAR(JourCalendrier),1,0)))","v":"Jour 233"},{"$f":"IF(WEEKDAY(JourCalendrier)=DébutSemaine,CONCATENATE(\"Semaine \",WEEKNUM(JourCalendrier),\"/Jour \",JourCalendrier-DATE(YEAR(JourCalendrier),1,0)),CONCATENATE(\"Jour \",JourCalendrier-DATE(YEAR(JourCalendrier),1,0)))","v":"Jour 234"},{"$f":"IF(WEEKDAY(JourCalendrier)=DébutSemaine,CONCATENATE(\"Semaine \",WEEKNUM(JourCalendrier),\"/Jour \",JourCalendrier-DATE(YEAR(JourCalendrier),1,0)),CONCATENATE(\"Jour \",JourCalendrier-DATE(YEAR(JourCalendrier),1,0)))","v":"Jour 235"},{"$f":"IF(WEEKDAY(JourCalendrier)=DébutSemaine,CONCATENATE(\"Semaine \",WEEKNUM(JourCalendrier),\"/Jour \",JourCalendrier-DATE(YEAR(JourCalendrier),1,0)),CONCATENATE(\"Jour \",JourCalendrier-DATE(YEAR(JourCalendrier),1,0)))","v":"Jour 236"},{"$f":"IF(WEEKDAY(JourCalendrier)=DébutSemaine,CONCATENATE(\"Semaine \",WEEKNUM(JourCalendrier),\"/Jour \",JourCalendrier-DATE(YEAR(JourCalendrier),1,0)),CONCATENATE(\"Jour \",JourCalendrier-DATE(YEAR(JourCalendrier),1,0)))","v":"Jour 237"}]
[]
[null,null,{"$f":"JoursEtSemaines+DATE(AnnéeCivile,8,1)-WEEKDAY(DATE(AnnéeCivile,8,1),(DébutSemaine=\"LUN\")+1)+29","v":"2018-08-26"},"2018-08-27","2018-08-28","2018-08-29","2018-08-30","2018-08-31","2018-09-01"]
[null,null,{"$f":"IF(WEEKDAY(JourCalendrier)=DébutSemaine,CONCATENATE(\"Semaine \",WEEKNUM(JourCalendrier),\"/Jour \",JourCalendrier-DATE(YEAR(JourCalendrier),1,0)),CONCATENATE(\"Jour \",JourCalendrier-DATE(YEAR(JourCalendrier),1,0)))","v":"Jour 238"},{"$f":"IF(WEEKDAY(JourCalendrier)=DébutSemaine,CONCATENATE(\"Semaine \",WEEKNUM(JourCalendrier),\"/Jour \",JourCalendrier-DATE(YEAR(JourCalendrier),1,0)),CONCATENATE(\"Jour \",JourCalendrier-DATE(YEAR(JourCalendrier),1,0)))","v":"Jour 239"},{"$f":"IF(WEEKDAY(JourCalendrier)=DébutSemaine,CONCATENATE(\"Semaine \",WEEKNUM(JourCalendrier),\"/Jour \",JourCalendrier-DATE(YEAR(JourCalendrier),1,0)),CONCATENATE(\"Jour \",JourCalendrier-DATE(YEAR(JourCalendrier),1,0)))","v":"Jour 240"},{"$f":"IF(WEEKDAY(JourCalendrier)=DébutSemaine,CONCATENATE(\"Semaine \",WEEKNUM(JourCalendrier),\"/Jour \",JourCalendrier-DATE(YEAR(JourCalendrier),1,0)),CONCATENATE(\"Jour \",JourCalendrier-DATE(YEAR(JourCalendrier),1,0)))","v":"Jour 241"},{"$f":"IF(WEEKDAY(JourCalendrier)=DébutSemaine,CONCATENATE(\"Semaine \",WEEKNUM(JourCalendrier),\"/Jour \",JourCalendrier-DATE(YEAR(JourCalendrier),1,0)),CONCATENATE(\"Jour \",JourCalendrier-DATE(YEAR(JourCalendrier),1,0)))","v":"Jour 242"},{"$f":"IF(WEEKDAY(JourCalendrier)=DébutSemaine,CONCATENATE(\"Semaine \",WEEKNUM(JourCalendrier),\"/Jour \",JourCalendrier-DATE(YEAR(JourCalendrier),1,0)),CONCATENATE(\"Jour \",JourCalendrier-DATE(YEAR(JourCalendrier),1,0)))","v":"Jour 243"},{"$f":"IF(WEEKDAY(JourCalendrier)=DébutSemaine,CONCATENATE(\"Semaine \",WEEKNUM(JourCalendrier),\"/Jour \",JourCalendrier-DATE(YEAR(JourCalendrier),1,0)),CONCATENATE(\"Jour \",JourCalendrier-DATE(YEAR(JourCalendrier),1,0)))","v":"Jour 244"}]
[{"$nulls":4},"NOTES"]
[]
[null,null,{"$f":"JoursEtSemaines+DATE(AnnéeCivile,8,1)-WEEKDAY(DATE(AnnéeCivile,8,1),(DébutSemaine=\"LUN\")+1)+36","v":"2018-09-02"},"2018-09-03"]
[null,null,{"$f":"IF(WEEKDAY(JourCalendrier)=DébutSemaine,CONCATENATE(\"Semaine \",WEEKNUM(JourCalendrier),\"/Jour \",JourCalendrier-DATE(YEAR(JourCalendrier),1,0)),CONCATENATE(\"Jour \",JourCalendrier-DATE(YEAR(JourCalendrier),1,0)))","v":"Jour 245"},{"$f":"IF(WEEKDAY(JourCalendrier)=DébutSemaine,CONCATENATE(\"Semaine \",WEEKNUM(JourCalendrier),\"/Jour \",JourCalendrier-DATE(YEAR(JourCalendrier),1,0)),CONCATENATE(\"Jour \",JourCalendrier-DATE(YEAR(JourCalendrier),1,0)))","v":"Jour 246"}]

{"sheet":"SEPT.","index":8,"n_rows":20,"n_cols":9,"rows_kept":20,"merged":[[16,2,17,2],[17,4,19,8]]}
[null,"SEPT.",{"$f":"UPPER(TEXT(DébutSemaine,\"jjj\"))","v":"DIM"},{"$f":"UPPER(TEXT(D3,\"jjj\"))","v":"LUN"},"MAR","MER","JEU","VEN","SAM"]
[null,{"$f":"AnnéeCivile","v":2018}]
[null,null,{"$f":"JoursEtSemaines+DATE(AnnéeCivile,9,1)-WEEKDAY(DATE(AnnéeCivile,9,1),(DébutSemaine=\"LUN\")+1)+1","v":"2018-08-26"},"2018-08-27","2018-08-28","2018-08-29","2018-08-30","2018-08-31","2018-09-01"]
[null,null,{"$f":"IF(DAY(JourCalendrier)=1,CONCATENATE(\"Semaine \",WEEKNUM(JourCalendrier),\"/Jour \",JourCalendrier-DATE(YEAR(JourCalendrier),1,0)),CONCATENATE(\"Jour \",JourCalendrier-DATE(YEAR(JourCalendrier),1,0)))","v":"Jour 238"},{"$f":"IF(DAY(JourCalendrier)=1,CONCATENATE(\"Semaine \",WEEKNUM(JourCalendrier),\"/Jour \",JourCalendrier-DATE(YEAR(JourCalendrier),1,0)),CONCATENATE(\"Jour \",JourCalendrier-DATE(YEAR(JourCalendrier),1,0)))","v":"Jour 239"},{"$f":"IF(DAY(JourCalendrier)=1,CONCATENATE(\"Semaine \",WEEKNUM(JourCalendrier),\"/Jour \",JourCalendrier-DATE(YEAR(JourCalendrier),1,0)),CONCATENATE(\"Jour \",JourCalendrier-DATE(YEAR(JourCalendrier),1,0)))","v":"Jour 240"},{"$f":"IF(DAY(JourCalendrier)=1,CONCATENATE(\"Semaine \",WEEKNUM(JourCalendrier),\"/Jour \",JourCalendrier-DATE(YEAR(JourCalendrier),1,0)),CONCATENATE(\"Jour \",JourCalendrier-DATE(YEAR(JourCalendrier),1,0)))","v":"Jour 241"},{"$f":"IF(DAY(JourCalendrier)=1,CONCATENATE(\"Semaine \",WEEKNUM(JourCalendrier),\"/Jour \",JourCalendrier-DATE(YEAR(JourCalendrier),1,0)),CONCATENATE(\"Jour \",JourCalendrier-DATE(YEAR(JourCalendrier),1,0)))","v":"Jour 242"},{"$f":"IF(DAY(JourCalendrier)=1,CONCATENATE(\"Semaine \",WEEKNUM(JourCalendrier),\"/Jour \",JourCalendrier-DATE(YEAR(JourCalendrier),1,0)),CONCATENATE(\"Jour \",JourCalendrier-DATE(YEAR(JourCalendrier),1,0)))","v":"Jour 243"},{"$f":"IF(DAY(JourCalendrier)=1,CONCATENATE(\"Semaine \",WEEKNUM(JourCalendrier),\"/Jour \",JourCalendrier-DATE(YEAR(JourCalendrier),1,0)),CONCATENATE(\"Jour \",JourCalendrier-DATE(YEAR(JourCalendrier),1,0)))","v":"Semaine 35/Jour 244"}]
[]
[null,null,{"$f":"JoursEtSemaines+DATE(AnnéeCivile,9,1)-WEEKDAY(DATE(AnnéeCivile,9,1),(DébutSemaine=\"LUN\")+1)+8","v":"2018-09-02"},"2018-09-03","2018-09-04","2018-09-05","2018-09-06","2018-09-07","2018-09-08"]
[null,null,{"$f":"IF(WEEKDAY(JourCalendrier)=DébutSemaine,CONCATENATE(\"Semaine \",WEEKNUM(JourCalendrier),\"/Jour \",JourCalendrier-DATE(YEAR(JourCalendrier),1,0)),CONCATENATE(\"Jour \",JourCalendrier-DATE(YEAR(JourCalendrier),1,0)))","v":"Jour 245"},{"$f":"IF(WEEKDAY(JourCalendrier)=DébutSemaine,CONCATENATE(\"Semaine \",WEEKNUM(JourCalendrier),\"/Jour \",JourCalendrier-DATE(YEAR(JourCalendrier),1,0)),CONCATENATE(\"Jour \",JourCalendrier-DATE(YEAR(JourCalendrier),1,0)))","v":"Jour 246"},{"$f":"IF(WEEKDAY(JourCalendrier)=DébutSemaine,CONCATENATE(\"Semaine \",WEEKNUM(JourCalendrier),\"/Jour \",JourCalendrier-DATE(YEAR(JourCalendrier),1,0)),CONCATENATE(\"Jour \",JourCalendrier-DATE(YEAR(JourCalendrier),1,0)))","v":"Jour 247"},{"$f":"IF(WEEKDAY(JourCalendrier)=DébutSemaine,CONCATENATE(\"Semaine \",WEEKNUM(JourCalendrier),\"/Jour \",JourCalendrier-DATE(YEAR(JourCalendrier),1,0)),CONCATENATE(\"Jour \",JourCalendrier-DATE(YEAR(JourCalendrier),1,0)))","v":"Jour 248"},{"$f":"IF(WEEKDAY(JourCalendrier)=DébutSemaine,CONCATENATE(\"Semaine \",WEEKNUM(JourCalendrier),\"/Jour \",JourCalendrier-DATE(YEAR(JourCalendrier),1,0)),CONCATENATE(\"Jour \",JourCalendrier-DATE(YEAR(JourCalendrier),1,0)))","v":"Jour 249"},{"$f":"IF(WEEKDAY(JourCalendrier)=DébutSemaine,CONCATENATE(\"Semaine \",WEEKNUM(JourCalendrier),\"/Jour \",JourCalendrier-DATE(YEAR(JourCalendrier),1,0)),CONCATENATE(\"Jour \",JourCalendrier-DATE(YEAR(JourCalendrier),1,0)))","v":"Jour 250"},{"$f":"IF(WEEKDAY(JourCalendrier)=DébutSemaine,CONCATENATE(\"Semaine \",WEEKNUM(JourCalendrier),\"/Jour \",JourCalendrier-DATE(YEAR(JourCalendrier),1,0)),CONCATENATE(\"Jour \",JourCalendrier-DATE(YEAR(JourCalendrier),1,0)))","v":"Jour 251"}]
[]
[null,null,{"$f":"JoursEtSemaines+DATE(AnnéeCivile,9,1)-WEEKDAY(DATE(AnnéeCivile,9,1),(DébutSemaine=\"LUN\")+1)+15","v":"2018-09-09"},"2018-09-10","2018-09-11","2018-09-12","2018-09-13","2018-09-14","2018-09-15"]
[null,null,{"$f":"IF(WEEKDAY(JourCalendrier)=DébutSemaine,CONCATENATE(\"Semaine \",WEEKNUM(JourCalendrier),\"/Jour \",JourCalendrier-DATE(YEAR(JourCalendrier),1,0)),CONCATENATE(\"Jour \",JourCalendrier-DATE(YEAR(JourCalendrier),1,0)))","v":"Jour 252"},{"$f":"IF(WEEKDAY(JourCalendrier)=DébutSemaine,CONCATENATE(\"Semaine \",WEEKNUM(JourCalendrier),\"/Jour \",JourCalendrier-DATE(YEAR(JourCalendrier),1,0)),CONCATENATE(\"Jour \",JourCalendrier-DATE(YEAR(JourCalendrier),1,0)))","v":"Jour 253"},{"$f":"IF(WEEKDAY(JourCalendrier)=DébutSemaine,CONCATENATE(\"Semaine \",WEEKNUM(JourCalendrier),\"/Jour \",JourCalendrier-DATE(YEAR(JourCalendrier),1,0)),CONCATENATE(\"Jour \",JourCalendrier-DATE(YEAR(JourCalendrier),1,0)))","v":"Jour 254"},{"$f":"IF(WEEKDAY(JourCalendrier)=DébutSemaine,CONCATENATE(\"Semaine \",WEEKNUM(JourCalendrier),\"/Jour \",JourCalendrier-DATE(YEAR(JourCalendrier),1,0)),CONCATENATE(\"Jour \",JourCalendrier-DATE(YEAR(JourCalendrier),1,0)))","v":"Jour 255"},{"$f":"IF(WEEKDAY(JourCalendrier)=DébutSemaine,CONCATENATE(\"Semaine \",WEEKNUM(JourCalendrier),\"/Jour \",JourCalendrier-DATE(YEAR(JourCalendrier),1,0)),CONCATENATE(\"Jour \",JourCalendrier-DATE(YEAR(JourCalendrier),1,0)))","v":"Jour 256"},{"$f":"IF(WEEKDAY(JourCalendrier)=DébutSemaine,CONCATENATE(\"Semaine \",WEEKNUM(JourCalendrier),\"/Jour \",JourCalendrier-DATE(YEAR(JourCalendrier),1,0)),CONCATENATE(\"Jour \",JourCalendrier-DATE(YEAR(JourCalendrier),1,0)))","v":"Jour 257"},{"$f":"IF(WEEKDAY(JourCalendrier)=DébutSemaine,CONCATENATE(\"Semaine \",WEEKNUM(JourCalendrier),\"/Jour \",JourCalendrier-DATE(YEAR(JourCalendrier),1,0)),CONCATENATE(\"Jour \",JourCalendrier-DATE(YEAR(JourCalendrier),1,0)))","v":"Jour 258"}]
[]
[null,null,{"$f":"JoursEtSemaines+DATE(AnnéeCivile,9,1)-WEEKDAY(DATE(AnnéeCivile,9,1),(DébutSemaine=\"LUN\")+1)+22","v":"2018-09-16"},"2018-09-17","2018-09-18","2018-09-19","2018-09-20","2018-09-21","2018-09-22"]
[null,null,{"$f":"IF(WEEKDAY(JourCalendrier)=DébutSemaine,CONCATENATE(\"Semaine \",WEEKNUM(JourCalendrier),\"/Jour \",JourCalendrier-DATE(YEAR(JourCalendrier),1,0)),CONCATENATE(\"Jour \",JourCalendrier-DATE(YEAR(JourCalendrier),1,0)))","v":"Jour 259"},{"$f":"IF(WEEKDAY(JourCalendrier)=DébutSemaine,CONCATENATE(\"Semaine \",WEEKNUM(JourCalendrier),\"/Jour \",JourCalendrier-DATE(YEAR(JourCalendrier),1,0)),CONCATENATE(\"Jour \",JourCalendrier-DATE(YEAR(JourCalendrier),1,0)))","v":"Jour 260"},{"$f":"IF(WEEKDAY(JourCalendrier)=DébutSemaine,CONCATENATE(\"Semaine \",WEEKNUM(JourCalendrier),\"/Jour \",JourCalendrier-DATE(YEAR(JourCalendrier),1,0)),CONCATENATE(\"Jour \",JourCalendrier-DATE(YEAR(JourCalendrier),1,0)))","v":"Jour 261"},{"$f":"IF(WEEKDAY(JourCalendrier)=DébutSemaine,CONCATENATE(\"Semaine \",WEEKNUM(JourCalendrier),\"/Jour \",JourCalendrier-DATE(YEAR(JourCalendrier),1,0)),CONCATENATE(\"Jour \",JourCalendrier-DATE(YEAR(JourCalendrier),1,0)))","v":"Jour 262"},{"$f":"IF(WEEKDAY(JourCalendrier)=DébutSemaine,CONCATENATE(\"Semaine \",WEEKNUM(JourCalendrier),\"/Jour \",JourCalendrier-DATE(YEAR(JourCalendrier),1,0)),CONCATENATE(\"Jour \",JourCalendrier-DATE(YEAR(JourCalendrier),1,0)))","v":"Jour 263"},{"$f":"IF(WEEKDAY(JourCalendrier)=DébutSemaine,CONCATENATE(\"Semaine \",WEEKNUM(JourCalendrier),\"/Jour \",JourCalendrier-DATE(YEAR(JourCalendrier),1,0)),CONCATENATE(\"Jour \",JourCalendrier-DATE(YEAR(JourCalendrier),1,0)))","v":"Jour 264"},{"$f":"IF(WEEKDAY(JourCalendrier)=DébutSemaine,CONCATENATE(\"Semaine \",WEEKNUM(JourCalendrier),\"/Jour \",JourCalendrier-DATE(YEAR(JourCalendrier),1,0)),CONCATENATE(\"Jour \",JourCalendrier-DATE(YEAR(JourCalendrier),1,0)))","v":"Jour 265"}]
[]
[null,null,{"$f":"JoursEtSemaines+DATE(AnnéeCivile,9,1)-WEEKDAY(DATE(AnnéeCivile,9,1),(DébutSemaine=\"LUN\")+1)+29","v":"2018-09-23"},"2018-09-24","2018-09-25","2018-09-26","2018-09-27","2018-09-28","2018-09-29"]
[null,null,{"$f":"IF(WEEKDAY(JourCalendrier)=DébutSemaine,CONCATENATE(\"Semaine \",WEEKNUM(JourCalendrier),\"/Jour \",JourCalendrier-DATE(YEAR(JourCalendrier),1,0)),CONCATENATE(\"Jour \",JourCalendrier-DATE(YEAR(JourCalendrier),1,0)))","v":"Jour 266"},{"$f":"IF(WEEKDAY(JourCalendrier)=DébutSemaine,CONCATENATE(\"Semaine \",WEEKNUM(JourCalendrier),\"/Jour \",JourCalendrier-DATE(YEAR(JourCalendrier),1,0)),CONCATENATE(\"Jour \",JourCalendrier-DATE(YEAR(JourCalendrier),1,0)))","v":"Jour 267"},{"$f":"IF(WEEKDAY(JourCalendrier)=DébutSemaine,CONCATENATE(\"Semaine \",WEEKNUM(JourCalendrier),\"/Jour \",JourCalendrier-DATE(YEAR(JourCalendrier),1,0)),CONCATENATE(\"Jour \",JourCalendrier-DATE(YEAR(JourCalendrier),1,0)))","v":"Jour 268"},{"$f":"IF(WEEKDAY(JourCalendrier)=DébutSemaine,CONCATENATE(\"Semaine \",WEEKNUM(JourCalendrier),\"/Jour \",JourCalendrier-DATE(YEAR(JourCalendrier),1,0)),CONCATENATE(\"Jour \",JourCalendrier-DATE(YEAR(JourCalendrier),1,0)))","v":"Jour 269"},{"$f":"IF(WEEKDAY(JourCalendrier)=DébutSemaine,CONCATENATE(\"Semaine \",WEEKNUM(JourCalendrier),\"/Jour \",JourCalendrier-DATE(YEAR(JourCalendrier),1,0)),CONCATENATE(\"Jour \",JourCalendrier-DATE(YEAR(JourCalendrier),1,0)))","v":"Jour 270"},{"$f":"IF(WEEKDAY(JourCalendrier)=DébutSemaine,CONCATENATE(\"Semaine \",WEEKNUM(JourCalendrier),\"/Jour \",JourCalendrier-DATE(YEAR(JourCalendrier),1,0)),CONCATENATE(\"Jour \",JourCalendrier-DATE(YEAR(JourCalendrier),1,0)))","v":"Jour 271"},{"$f":"IF(WEEKDAY(JourCalendrier)=DébutSemaine,CONCATENATE(\"Semaine \",WEEKNUM(JourCalendrier),\"/Jour \",JourCalendrier-DATE(YEAR(JourCalendrier),1,0)),CONCATENATE(\"Jour \",JourCalendrier-DATE(YEAR(JourCalendrier),1,0)))","v":"Jour 272"}]
[{"$nulls":4},"NOTES"]
[]
[null,null,{"$f":"JoursEtSemaines+DATE(AnnéeCivile,9,1)-WEEKDAY(DATE(AnnéeCivile,9,1),(DébutSemaine=\"LUN\")+1)+36","v":"2018-09-30"},"2018-10-01"]
[null,null,{"$f":"IF(WEEKDAY(JourCalendrier)=DébutSemaine,CONCATENATE(\"Semaine \",WEEKNUM(JourCalendrier),\"/Jour \",JourCalendrier-DATE(YEAR(JourCalendrier),1,0)),CONCATENATE(\"Jour \",JourCalendrier-DATE(YEAR(JourCalendrier),1,0)))","v":"Jour 273"},{"$f":"IF(WEEKDAY(JourCalendrier)=DébutSemaine,CONCATENATE(\"Semaine \",WEEKNUM(JourCalendrier),\"/Jour \",JourCalendrier-DATE(YEAR(JourCalendrier),1,0)),CONCATENATE(\"Jour \",JourCalendrier-DATE(YEAR(JourCalendrier),1,0)))","v":"Jour 274"}]

{"sheet":"OCT.","index":9,"n_rows":20,"n_cols":9,"rows_kept":20,"merged":[[16,2,17,2],[17,4,19,8]]}
[null,"OCT.",{"$f":"UPPER(TEXT(DébutSemaine,\"jjj\"))","v":"DIM"},{"$f":"UPPER(TEXT(D3,\"jjj\"))","v":"LUN"},"MAR","MER","JEU","VEN","SAM"]
[null,{"$f":"AnnéeCivile","v":2018}]
[null,null,{"$f":"JoursEtSemaines+DATE(AnnéeCivile,10,1)-WEEKDAY(DATE(AnnéeCivile,10,1),(DébutSemaine=\"LUN\")+1)+1","v":"2018-09-30"},"2018-10-01","2018-10-02","2018-10-03","2018-10-04","2018-10-05","2018-10-06"]
[null,null,{"$f":"IF(DAY(JourCalendrier)=1,CONCATENATE(\"Semaine \",WEEKNUM(JourCalendrier),\"/Jour \",JourCalendrier-DATE(YEAR(JourCalendrier),1,0)),CONCATENATE(\"Jour \",JourCalendrier-DATE(YEAR(JourCalendrier),1,0)))","v":"Jour 273"},{"$f":"IF(DAY(JourCalendrier)=1,CONCATENATE(\"Semaine \",WEEKNUM(JourCalendrier),\"/Jour \",JourCalendrier-DATE(YEAR(JourCalendrier),1,0)),CONCATENATE(\"Jour \",JourCalendrier-DATE(YEAR(JourCalendrier),1,0)))","v":"Semaine 40/Jour 274"},{"$f":"IF(DAY(JourCalendrier)=1,CONCATENATE(\"Semaine \",WEEKNUM(JourCalendrier),\"/Jour \",JourCalendrier-DATE(YEAR(JourCalendrier),1,0)),CONCATENATE(\"Jour \",JourCalendrier-DATE(YEAR(JourCalendrier),1,0)))","v":"Jour 275"},{"$f":"IF(DAY(JourCalendrier)=1,CONCATENATE(\"Semaine \",WEEKNUM(JourCalendrier),\"/Jour \",JourCalendrier-DATE(YEAR(JourCalendrier),1,0)),CONCATENATE(\"Jour \",JourCalendrier-DATE(YEAR(JourCalendrier),1,0)))","v":"Jour 276"},{"$f":"IF(DAY(JourCalendrier)=1,CONCATENATE(\"Semaine \",WEEKNUM(JourCalendrier),\"/Jour \",JourCalendrier-DATE(YEAR(JourCalendrier),1,0)),CONCATENATE(\"Jour \",JourCalendrier-DATE(YEAR(JourCalendrier),1,0)))","v":"Jour 277"},{"$f":"IF(DAY(JourCalendrier)=1,CONCATENATE(\"Semaine \",WEEKNUM(JourCalendrier),\"/Jour \",JourCalendrier-DATE(YEAR(JourCalendrier),1,0)),CONCATENATE(\"Jour \",JourCalendrier-DATE(YEAR(JourCalendrier),1,0)))","v":"Jour 278"},{"$f":"IF(DAY(JourCalendrier)=1,CONCATENATE(\"Semaine \",WEEKNUM(JourCalendrier),\"/Jour \",JourCalendrier-DATE(YEAR(JourCalendrier),1,0)),CONCATENATE(\"Jour \",JourCalendrier-DATE(YEAR(JourCalendrier),1,0)))","v":"Jour 279"}]
[]
[null,null,{"$f":"JoursEtSemaines+DATE(AnnéeCivile,10,1)-WEEKDAY(DATE(AnnéeCivile,10,1),(DébutSemaine=\"LUN\")+1)+8","v":"2018-10-07"},"2018-10-08","2018-10-09","2018-10-10","2018-10-11","2018-10-12","2018-10-13"]
[null,null,{"$f":"IF(WEEKDAY(JourCalendrier)=DébutSemaine,CONCATENATE(\"Semaine \",WEEKNUM(JourCalendrier),\"/Jour \",JourCalendrier-DATE(YEAR(JourCalendrier),1,0)),CONCATENATE(\"Jour \",JourCalendrier-DATE(YEAR(JourCalendrier),1,0)))","v":"Jour 280"},{"$f":"IF(WEEKDAY(JourCalendrier)=DébutSemaine,CONCATENATE(\"Semaine \",WEEKNUM(JourCalendrier),\"/Jour \",JourCalendrier-DATE(YEAR(JourCalendrier),1,0)),CONCATENATE(\"Jour \",JourCalendrier-DATE(YEAR(JourCalendrier),1,0)))","v":"Jour 281"},{"$f":"IF(WEEKDAY(JourCalendrier)=DébutSemaine,CONCATENATE(\"Semaine \",WEEKNUM(JourCalendrier),\"/Jour \",JourCalendrier-DATE(YEAR(JourCalendrier),1,0)),CONCATENATE(\"Jour \",JourCalendrier-DATE(YEAR(JourCalendrier),1,0)))","v":"Jour 282"},{"$f":"IF(WEEKDAY(JourCalendrier)=DébutSemaine,CONCATENATE(\"Semaine \",WEEKNUM(JourCalendrier),\"/Jour \",JourCalendrier-DATE(YEAR(JourCalendrier),1,0)),CONCATENATE(\"Jour \",JourCalendrier-DATE(YEAR(JourCalendrier),1,0)))","v":"Jour 283"},{"$f":"IF(WEEKDAY(JourCalendrier)=DébutSemaine,CONCATENATE(\"Semaine \",WEEKNUM(JourCalendrier),\"/Jour \",JourCalendrier-DATE(YEAR(JourCalendrier),1,0)),CONCATENATE(\"Jour \",JourCalendrier-DATE(YEAR(JourCalendrier),1,0)))","v":"Jour 284"},{"$f":"IF(WEEKDAY(JourCalendrier)=DébutSemaine,CONCATENATE(\"Semaine \",WEEKNUM(JourCalendrier),\"/Jour \",JourCalendrier-DATE(YEAR(JourCalendrier),1,0)),CONCATENATE(\"Jour \",JourCalendrier-DATE(YEAR(JourCalendrier),1,0)))","v":"Jour 285"},{"$f":"IF(WEEKDAY(JourCalendrier)=DébutSemaine,CONCATENATE(\"Semaine \",WEEKNUM(JourCalendrier),\"/Jour \",JourCalendrier-DATE(YEAR(JourCalendrier),1,0)),CONCATENATE(\"Jour \",JourCalendrier-DATE(YEAR(JourCalendrier),1,0)))","v":"Jour 286"}]
[]
[null,null,{"$f":"JoursEtSemaines+DATE(AnnéeCivile,10,1)-WEEKDAY(DATE(AnnéeCivile,10,1),(DébutSemaine=\"LUN\")+1)+15","v":"2018-10-14"},"2018-10-15","2018-10-16","2018-10-17","2018-10-18","2018-10-19","2018-10-20"]
[null,null,{"$f":"IF(WEEKDAY(JourCalendrier)=DébutSemaine,CONCATENATE(\"Semaine \",WEEKNUM(JourCalendrier),\"/Jour \",JourCalendrier-DATE(YEAR(JourCalendrier),1,0)),CONCATENATE(\"Jour \",JourCalendrier-DATE(YEAR(JourCalendrier),1,0)))","v":"Jour 287"},{"$f":"IF(WEEKDAY(JourCalendrier)=DébutSemaine,CONCATENATE(\"Semaine \",WEEKNUM(JourCalendrier),\"/Jour \",JourCalendrier-DATE(YEAR(JourCalendrier),1,0)),CONCATENATE(\"Jour \",JourCalendrier-DATE(YEAR(JourCalendrier),1,0)))","v":"Jour 288"},{"$f":"IF(WEEKDAY(JourCalendrier)=DébutSemaine,CONCATENATE(\"Semaine \",WEEKNUM(JourCalendrier),\"/Jour \",JourCalendrier-DATE(YEAR(JourCalendrier),1,0)),CONCATENATE(\"Jour \",JourCalendrier-DATE(YEAR(JourCalendrier),1,0)))","v":"Jour 289"},{"$f":"IF(WEEKDAY(JourCalendrier)=DébutSemaine,CONCATENATE(\"Semaine \",WEEKNUM(JourCalendrier),\"/Jour \",JourCalendrier-DATE(YEAR(JourCalendrier),1,0)),CONCATENATE(\"Jour \",JourCalendrier-DATE(YEAR(JourCalendrier),1,0)))","v":"Jour 290"},{"$f":"IF(WEEKDAY(JourCalendrier)=DébutSemaine,CONCATENATE(\"Semaine \",WEEKNUM(JourCalendrier),\"/Jour \",JourCalendrier-DATE(YEAR(JourCalendrier),1,0)),CONCATENATE(\"Jour \",JourCalendrier-DATE(YEAR(JourCalendrier),1,0)))","v":"Jour 291"},{"$f":"IF(WEEKDAY(JourCalendrier)=DébutSemaine,CONCATENATE(\"Semaine \",WEEKNUM(JourCalendrier),\"/Jour \",JourCalendrier-DATE(YEAR(JourCalendrier),1,0)),CONCATENATE(\"Jour \",JourCalendrier-DATE(YEAR(JourCalendrier),1,0)))","v":"Jour 292"},{"$f":"IF(WEEKDAY(JourCalendrier)=DébutSemaine,CONCATENATE(\"Semaine \",WEEKNUM(JourCalendrier),\"/Jour \",JourCalendrier-DATE(YEAR(JourCalendrier),1,0)),CONCATENATE(\"Jour \",JourCalendrier-DATE(YEAR(JourCalendrier),1,0)))","v":"Jour 293"}]
[]
[null,null,{"$f":"JoursEtSemaines+DATE(AnnéeCivile,10,1)-WEEKDAY(DATE(AnnéeCivile,10,1),(DébutSemaine=\"LUN\")+1)+22","v":"2018-10-21"},"2018-10-22","2018-10-23","2018-10-24","2018-10-25","2018-10-26","2018-10-27"]
[null,null,{"$f":"IF(WEEKDAY(JourCalendrier)=DébutSemaine,CONCATENATE(\"Semaine \",WEEKNUM(JourCalendrier),\"/Jour \",JourCalendrier-DATE(YEAR(JourCalendrier),1,0)),CONCATENATE(\"Jour \",JourCalendrier-DATE(YEAR(JourCalendrier),1,0)))","v":"Jour 294"},{"$f":"IF(WEEKDAY(JourCalendrier)=DébutSemaine,CONCATENATE(\"Semaine \",WEEKNUM(JourCalendrier),\"/Jour \",JourCalendrier-DATE(YEAR(JourCalendrier),1,0)),CONCATENATE(\"Jour \",JourCalendrier-DATE(YEAR(JourCalendrier),1,0)))","v":"Jour 295"},{"$f":"IF(WEEKDAY(JourCalendrier)=DébutSemaine,CONCATENATE(\"Semaine \",WEEKNUM(JourCalendrier),\"/Jour \",JourCalendrier-DATE(YEAR(JourCalendrier),1,0)),CONCATENATE(\"Jour \",JourCalendrier-DATE(YEAR(JourCalendrier),1,0)))","v":"Jour 296"},{"$f":"IF(WEEKDAY(JourCalendrier)=DébutSemaine,CONCATENATE(\"Semaine \",WEEKNUM(JourCalendrier),\"/Jour \",JourCalendrier-DATE(YEAR(JourCalendrier),1,0)),CONCATENATE(\"Jour \",JourCalendrier-DATE(YEAR(JourCalendrier),1,0)))","v":"Jour 297"},{"$f":"IF(WEEKDAY(JourCalendrier)=DébutSemaine,CONCATENATE(\"Semaine \",WEEKNUM(JourCalendrier),\"/Jour \",JourCalendrier-DATE(YEAR(JourCalendrier),1,0)),CONCATENATE(\"Jour \",JourCalendrier-DATE(YEAR(JourCalendrier),1,0)))","v":"Jour 298"},{"$f":"IF(WEEKDAY(JourCalendrier)=DébutSemaine,CONCATENATE(\"Semaine \",WEEKNUM(JourCalendrier),\"/Jour \",JourCalendrier-DATE(YEAR(JourCalendrier),1,0)),CONCATENATE(\"Jour \",JourCalendrier-DATE(YEAR(JourCalendrier),1,0)))","v":"Jour 299"},{"$f":"IF(WEEKDAY(JourCalendrier)=DébutSemaine,CONCATENATE(\"Semaine \",WEEKNUM(JourCalendrier),\"/Jour \",JourCalendrier-DATE(YEAR(JourCalendrier),1,0)),CONCATENATE(\"Jour \",JourCalendrier-DATE(YEAR(JourCalendrier),1,0)))","v":"Jour 300"}]
[]
[null,null,{"$f":"JoursEtSemaines+DATE(AnnéeCivile,10,1)-WEEKDAY(DATE(AnnéeCivile,10,1),(DébutSemaine=\"LUN\")+1)+29","v":"2018-10-28"},"2018-10-29","2018-10-30","2018-10-31","2018-11-01","2018-11-02","2018-11-03"]
[null,null,{"$f":"IF(WEEKDAY(JourCalendrier)=DébutSemaine,CONCATENATE(\"Semaine \",WEEKNUM(JourCalendrier),\"/Jour \",JourCalendrier-DATE(YEAR(JourCalendrier),1,0)),CONCATENATE(\"Jour \",JourCalendrier-DATE(YEAR(JourCalendrier),1,0)))","v":"Jour 301"},{"$f":"IF(WEEKDAY(JourCalendrier)=DébutSemaine,CONCATENATE(\"Semaine \",WEEKNUM(JourCalendrier),\"/Jour \",JourCalendrier-DATE(YEAR(JourCalendrier),1,0)),CONCATENATE(\"Jour \",JourCalendrier-DATE(YEAR(JourCalendrier),1,0)))","v":"Jour 302"},{"$f":"IF(WEEKDAY(JourCalendrier)=DébutSemaine,CONCATENATE(\"Semaine \",WEEKNUM(JourCalendrier),\"/Jour \",JourCalendrier-DATE(YEAR(JourCalendrier),1,0)),CONCATENATE(\"Jour \",JourCalendrier-DATE(YEAR(JourCalendrier),1,0)))","v":"Jour 303"},{"$f":"IF(WEEKDAY(JourCalendrier)=DébutSemaine,CONCATENATE(\"Semaine \",WEEKNUM(JourCalendrier),\"/Jour \",JourCalendrier-DATE(YEAR(JourCalendrier),1,0)),CONCATENATE(\"Jour \",JourCalendrier-DATE(YEAR(JourCalendrier),1,0)))","v":"Jour 304"},{"$f":"IF(WEEKDAY(JourCalendrier)=DébutSemaine,CONCATENATE(\"Semaine \",WEEKNUM(JourCalendrier),\"/Jour \",JourCalendrier-DATE(YEAR(JourCalendrier),1,0)),CONCATENATE(\"Jour \",JourCalendrier-DATE(YEAR(JourCalendrier),1,0)))","v":"Jour 305"},{"$f":"IF(WEEKDAY(JourCalendrier)=DébutSemaine,CONCATENATE(\"Semaine \",WEEKNUM(JourCalendrier),\"/Jour \",JourCalendrier-DATE(YEAR(JourCalendrier),1,0)),CONCATENATE(\"Jour \",JourCalendrier-DATE(YEAR(JourCalendrier),1,0)))","v":"Jour 306"},{"$f":"IF(WEEKDAY(JourCalendrier)=DébutSemaine,CONCATENATE(\"Semaine \",WEEKNUM(JourCalendrier),\"/Jour \",JourCalendrier-DATE(YEAR(JourCalendrier),1,0)),CONCATENATE(\"Jour \",JourCalendrier-DATE(YEAR(JourCalendrier),1,0)))","v":"Jour 307"}]
[{"$nulls":4},"NOTES"]
[]
[null,null,{"$f":"JoursEtSemaines+DATE(AnnéeCivile,10,1)-WEEKDAY(DATE(AnnéeCivile,10,1),(DébutSemaine=\"LUN\")+1)+36","v":"2018-11-04"},"2018-11-05"]
[null,null,{"$f":"IF(WEEKDAY(JourCalendrier)=DébutSemaine,CONCATENATE(\"Semaine \",WEEKNUM(JourCalendrier),\"/Jour \",JourCalendrier-DATE(YEAR(JourCalendrier),1,0)),CONCATENATE(\"Jour \",JourCalendrier-DATE(YEAR(JourCalendrier),1,0)))","v":"Jour 308"},{"$f":"IF(WEEKDAY(JourCalendrier)=DébutSemaine,CONCATENATE(\"Semaine \",WEEKNUM(JourCalendrier),\"/Jour \",JourCalendrier-DATE(YEAR(JourCalendrier),1,0)),CONCATENATE(\"Jour \",JourCalendrier-DATE(YEAR(JourCalendrier),1,0)))","v":"Jour 309"}]

{"sheet":"NOV.","index":10,"n_rows":20,"n_cols":9,"rows_kept":20,"merged":[[16,2,17,2],[17,4,19,8]]}
[null,"NOV.",{"$f":"UPPER(TEXT(DébutSemaine,\"jjj\"))","v":"DIM"},{"$f":"UPPER(TEXT(D3,\"jjj\"))","v":"LUN"},"MAR","MER","JEU","VEN","SAM"]
[null,{"$f":"AnnéeCivile","v":2018}]
[null,null,{"$f":"JoursEtSemaines+DATE(AnnéeCivile,11,1)-WEEKDAY(DATE(AnnéeCivile,11,1),(DébutSemaine=\"LUN\")+1)+1","v":"2018-10-28"},"2018-10-29","2018-10-30","2018-10-31","2018-11-01","2018-11-02","2018-11-03"]
[null,null,{"$f":"IF(DAY(JourCalendrier)=1,CONCATENATE(\"Semaine \",WEEKNUM(JourCalendrier),\"/Jour \",JourCalendrier-DATE(YEAR(JourCalendrier),1,0)),CONCATENATE(\"Jour \",JourCalendrier-DATE(YEAR(JourCalendrier),1,0)))","v":"Jour 301"},{"$f":"IF(DAY(JourCalendrier)=1,CONCATENATE(\"Semaine \",WEEKNUM(JourCalendrier),\"/Jour \",JourCalendrier-DATE(YEAR(JourCalendrier),1,0)),CONCATENATE(\"Jour \",JourCalendrier-DATE(YEAR(JourCalendrier),1,0)))","v":"Jour 302"},{"$f":"IF(DAY(JourCalendrier)=1,CONCATENATE(\"Semaine \",WEEKNUM(JourCalendrier),\"/Jour \",JourCalendrier-DATE(YEAR(JourCalendrier),1,0)),CONCATENATE(\"Jour \",JourCalendrier-DATE(YEAR(JourCalendrier),1,0)))","v":"Jour 303"},{"$f":"IF(DAY(JourCalendrier)=1,CONCATENATE(\"Semaine \",WEEKNUM(JourCalendrier),\"/Jour \",JourCalendrier-DATE(YEAR(JourCalendrier),1,0)),CONCATENATE(\"Jour \",JourCalendrier-DATE(YEAR(JourCalendrier),1,0)))","v":"Jour 304"},{"$f":"IF(DAY(JourCalendrier)=1,CONCATENATE(\"Semaine \",WEEKNUM(JourCalendrier),\"/Jour \",JourCalendrier-DATE(YEAR(JourCalendrier),1,0)),CONCATENATE(\"Jour \",JourCalendrier-DATE(YEAR(JourCalendrier),1,0)))","v":"Semaine 44/Jour 305"},{"$f":"IF(DAY(JourCalendrier)=1,CONCATENATE(\"Semaine \",WEEKNUM(JourCalendrier),\"/Jour \",JourCalendrier-DATE(YEAR(JourCalendrier),1,0)),CONCATENATE(\"Jour \",JourCalendrier-DATE(YEAR(JourCalendrier),1,0)))","v":"Jour 306"},{"$f":"IF(DAY(JourCalendrier)=1,CONCATENATE(\"Semaine \",WEEKNUM(JourCalendrier),\"/Jour \",JourCalendrier-DATE(YEAR(JourCalendrier),1,0)),CONCATENATE(\"Jour \",JourCalendrier-DATE(YEAR(JourCalendrier),1,0)))","v":"Jour 307"}]
[]
[null,null,{"$f":"JoursEtSemaines+DATE(AnnéeCivile,11,1)-WEEKDAY(DATE(AnnéeCivile,11,1),(DébutSemaine=\"LUN\")+1)+8","v":"2018-11-04"},"2018-11-05","2018-11-06","2018-11-07","2018-11-08","2018-11-09","2018-11-10"]
[null,null,{"$f":"IF(WEEKDAY(JourCalendrier)=DébutSemaine,CONCATENATE(\"Semaine \",WEEKNUM(JourCalendrier),\"/Jour \",JourCalendrier-DATE(YEAR(JourCalendrier),1,0)),CONCATENATE(\"Jour \",JourCalendrier-DATE(YEAR(JourCalendrier),1,0)))","v":"Jour 308"},{"$f":"IF(WEEKDAY(JourCalendrier)=DébutSemaine,CONCATENATE(\"Semaine \",WEEKNUM(JourCalendrier),\"/Jour \",JourCalendrier-DATE(YEAR(JourCalendrier),1,0)),CONCATENATE(\"Jour \",JourCalendrier-DATE(YEAR(JourCalendrier),1,0)))","v":"Jour 309"},{"$f":"IF(WEEKDAY(JourCalendrier)=DébutSemaine,CONCATENATE(\"Semaine \",WEEKNUM(JourCalendrier),\"/Jour \",JourCalendrier-DATE(YEAR(JourCalendrier),1,0)),CONCATENATE(\"Jour \",JourCalendrier-DATE(YEAR(JourCalendrier),1,0)))","v":"Jour 310"},{"$f":"IF(WEEKDAY(JourCalendrier)=DébutSemaine,CONCATENATE(\"Semaine \",WEEKNUM(JourCalendrier),\"/Jour \",JourCalendrier-DATE(YEAR(JourCalendrier),1,0)),CONCATENATE(\"Jour \",JourCalendrier-DATE(YEAR(JourCalendrier),1,0)))","v":"Jour 311"},{"$f":"IF(WEEKDAY(JourCalendrier)=DébutSemaine,CONCATENATE(\"Semaine \",WEEKNUM(JourCalendrier),\"/Jour \",JourCalendrier-DATE(YEAR(JourCalendrier),1,0)),CONCATENATE(\"Jour \",JourCalendrier-DATE(YEAR(JourCalendrier),1,0)))","v":"Jour 312"},{"$f":"IF(WEEKDAY(JourCalendrier)=DébutSemaine,CONCATENATE(\"Semaine \",WEEKNUM(JourCalendrier),\"/Jour \",JourCalendrier-DATE(YEAR(JourCalendrier),1,0)),CONCATENATE(\"Jour \",JourCalendrier-DATE(YEAR(JourCalendrier),1,0)))","v":"Jour 313"},{"$f":"IF(WEEKDAY(JourCalendrier)=DébutSemaine,CONCATENATE(\"Semaine \",WEEKNUM(JourCalendrier),\"/Jour \",JourCalendrier-DATE(YEAR(JourCalendrier),1,0)),CONCATENATE(\"Jour \",JourCalendrier-DATE(YEAR(JourCalendrier),1,0)))","v":"Jour 314"}]
[]
[null,null,{"$f":"JoursEtSemaines+DATE(AnnéeCivile,11,1)-WEEKDAY(DATE(AnnéeCivile,11,1),(DébutSemaine=\"LUN\")+1)+15","v":"2018-11-11"},"2018-11-12","2018-11-13","2018-11-14","2018-11-15","2018-11-16","2018-11-17"]
[null,null,{"$f":"IF(WEEKDAY(JourCalendrier)=DébutSemaine,CONCATENATE(\"Semaine \",WEEKNUM(JourCalendrier),\"/Jour \",JourCalendrier-DATE(YEAR(JourCalendrier),1,0)),CONCATENATE(\"Jour \",JourCalendrier-DATE(YEAR(JourCalendrier),1,0)))","v":"Jour 315"},{"$f":"IF(WEEKDAY(JourCalendrier)=DébutSemaine,CONCATENATE(\"Semaine \",WEEKNUM(JourCalendrier),\"/Jour \",JourCalendrier-DATE(YEAR(JourCalendrier),1,0)),CONCATENATE(\"Jour \",JourCalendrier-DATE(YEAR(JourCalendrier),1,0)))","v":"Jour 316"},{"$f":"IF(WEEKDAY(JourCalendrier)=DébutSemaine,CONCATENATE(\"Semaine \",WEEKNUM(JourCalendrier),\"/Jour \",JourCalendrier-DATE(YEAR(JourCalendrier),1,0)),CONCATENATE(\"Jour \",JourCalendrier-DATE(YEAR(JourCalendrier),1,0)))","v":"Jour 317"},{"$f":"IF(WEEKDAY(JourCalendrier)=DébutSemaine,CONCATENATE(\"Semaine \",WEEKNUM(JourCalendrier),\"/Jour \",JourCalendrier-DATE(YEAR(JourCalendrier),1,0)),CONCATENATE(\"Jour \",JourCalendrier-DATE(YEAR(JourCalendrier),1,0)))","v":"Jour 318"},{"$f":"IF(WEEKDAY(JourCalendrier)=DébutSemaine,CONCATENATE(\"Semaine \",WEEKNUM(JourCalendrier),\"/Jour \",JourCalendrier-DATE(YEAR(JourCalendrier),1,0)),CONCATENATE(\"Jour \",JourCalendrier-DATE(YEAR(JourCalendrier),1,0)))","v":"Jour 319"},{"$f":"IF(WEEKDAY(JourCalendrier)=DébutSemaine,CONCATENATE(\"Semaine \",WEEKNUM(JourCalendrier),\"/Jour \",JourCalendrier-DATE(YEAR(JourCalendrier),1,0)),CONCATENATE(\"Jour \",JourCalendrier-DATE(YEAR(JourCalendrier),1,0)))","v":"Jour 320"},{"$f":"IF(WEEKDAY(JourCalendrier)=DébutSemaine,CONCATENATE(\"Semaine \",WEEKNUM(JourCalendrier),\"/Jour \",JourCalendrier-DATE(YEAR(JourCalendrier),1,0)),CONCATENATE(\"Jour \",JourCalendrier-DATE(YEAR(JourCalendrier),1,0)))","v":"Jour 321"}]
[]
[null,null,{"$f":"JoursEtSemaines+DATE(AnnéeCivile,11,1)-WEEKDAY(DATE(AnnéeCivile,11,1),(DébutSemaine=\"LUN\")+1)+22","v":"2018-11-18"},"2018-11-19","2018-11-20","2018-11-21","2018-11-22","2018-11-23","2018-11-24"]
[null,null,{"$f":"IF(WEEKDAY(JourCalendrier)=DébutSemaine,CONCATENATE(\"Semaine \",WEEKNUM(JourCalendrier),\"/Jour \",JourCalendrier-DATE(YEAR(JourCalendrier),1,0)),CONCATENATE(\"Jour \",JourCalendrier-DATE(YEAR(JourCalendrier),1,0)))","v":"Jour 322"},{"$f":"IF(WEEKDAY(JourCalendrier)=DébutSemaine,CONCATENATE(\"Semaine \",WEEKNUM(JourCalendrier),\"/Jour \",JourCalendrier-DATE(YEAR(JourCalendrier),1,0)),CONCATENATE(\"Jour \",JourCalendrier-DATE(YEAR(JourCalendrier),1,0)))","v":"Jour 323"},{"$f":"IF(WEEKDAY(JourCalendrier)=DébutSemaine,CONCATENATE(\"Semaine \",WEEKNUM(JourCalendrier),\"/Jour \",JourCalendrier-DATE(YEAR(JourCalendrier),1,0)),CONCATENATE(\"Jour \",JourCalendrier-DATE(YEAR(JourCalendrier),1,0)))","v":"Jour 324"},{"$f":"IF(WEEKDAY(JourCalendrier)=DébutSemaine,CONCATENATE(\"Semaine \",WEEKNUM(JourCalendrier),\"/Jour \",JourCalendrier-DATE(YEAR(JourCalendrier),1,0)),CONCATENATE(\"Jour \",JourCalendrier-DATE(YEAR(JourCalendrier),1,0)))","v":"Jour 325"},{"$f":"IF(WEEKDAY(JourCalendrier)=DébutSemaine,CONCATENATE(\"Semaine \",WEEKNUM(JourCalendrier),\"/Jour \",JourCalendrier-DATE(YEAR(JourCalendrier),1,0)),CONCATENATE(\"Jour \",JourCalendrier-DATE(YEAR(JourCalendrier),1,0)))","v":"Jour 326"},{"$f":"IF(WEEKDAY(JourCalendrier)=DébutSemaine,CONCATENATE(\"Semaine \",WEEKNUM(JourCalendrier),\"/Jour \",JourCalendrier-DATE(YEAR(JourCalendrier),1,0)),CONCATENATE(\"Jour \",JourCalendrier-DATE(YEAR(JourCalendrier),1,0)))","v":"Jour 327"},{"$f":"IF(WEEKDAY(JourCalendrier)=DébutSemaine,CONCATENATE(\"Semaine \",WEEKNUM(JourCalendrier),\"/Jour \",JourCalendrier-DATE(YEAR(JourCalendrier),1,0)),CONCATENATE(\"Jour \",JourCalendrier-DATE(YEAR(JourCalendrier),1,0)))","v":"Jour 328"}]
[]
[null,null,{"$f":"JoursEtSemaines+DATE(AnnéeCivile,11,1)-WEEKDAY(DATE(AnnéeCivile,11,1),(DébutSemaine=\"LUN\")+1)+29","v":"2018-11-25"},"2018-11-26","2018-11-27","2018-11-28","2018-11-29","2018-11-30","2018-12-01"]
[null,null,{"$f":"IF(WEEKDAY(JourCalendrier)=DébutSemaine,CONCATENATE(\"Semaine \",WEEKNUM(JourCalendrier),\"/Jour \",JourCalendrier-DATE(YEAR(JourCalendrier),1,0)),CONCATENATE(\"Jour \",JourCalendrier-DATE(YEAR(JourCalendrier),1,0)))","v":"Jour 329"},{"$f":"IF(WEEKDAY(JourCalendrier)=DébutSemaine,CONCATENATE(\"Semaine \",WEEKNUM(JourCalendrier),\"/Jour \",JourCalendrier-DATE(YEAR(JourCalendrier),1,0)),CONCATENATE(\"Jour \",JourCalendrier-DATE(YEAR(JourCalendrier),1,0)))","v":"Jour 330"},{"$f":"IF(WEEKDAY(JourCalendrier)=DébutSemaine,CONCATENATE(\"Semaine \",WEEKNUM(JourCalendrier),\"/Jour \",JourCalendrier-DATE(YEAR(JourCalendrier),1,0)),CONCATENATE(\"Jour \",JourCalendrier-DATE(YEAR(JourCalendrier),1,0)))","v":"Jour 331"},{"$f":"IF(WEEKDAY(JourCalendrier)=DébutSemaine,CONCATENATE(\"Semaine \",WEEKNUM(JourCalendrier),\"/Jour \",JourCalendrier-DATE(YEAR(JourCalendrier),1,0)),CONCATENATE(\"Jour \",JourCalendrier-DATE(YEAR(JourCalendrier),1,0)))","v":"Jour 332"},{"$f":"IF(WEEKDAY(JourCalendrier)=DébutSemaine,CONCATENATE(\"Semaine \",WEEKNUM(JourCalendrier),\"/Jour \",JourCalendrier-DATE(YEAR(JourCalendrier),1,0)),CONCATENATE(\"Jour \",JourCalendrier-DATE(YEAR(JourCalendrier),1,0)))","v":"Jour 333"},{"$f":"IF(WEEKDAY(JourCalendrier)=DébutSemaine,CONCATENATE(\"Semaine \",WEEKNUM(JourCalendrier),\"/Jour \",JourCalendrier-DATE(YEAR(JourCalendrier),1,0)),CONCATENATE(\"Jour \",JourCalendrier-DATE(YEAR(JourCalendrier),1,0)))","v":"Jour 334"},{"$f":"IF(WEEKDAY(JourCalendrier)=DébutSemaine,CONCATENATE(\"Semaine \",WEEKNUM(JourCalendrier),\"/Jour \",JourCalendrier-DATE(YEAR(JourCalendrier),1,0)),CONCATENATE(\"Jour \",JourCalendrier-DATE(YEAR(JourCalendrier),1,0)))","v":"Jour 335"}]
[{"$nulls":4},"NOTES"]
[]
[null,null,{"$f":"JoursEtSemaines+DATE(AnnéeCivile,11,1)-WEEKDAY(DATE(AnnéeCivile,11,1),(DébutSemaine=\"LUN\")+1)+36","v":"2018-12-02"},"2018-12-03"]
[null,null,{"$f":"IF(WEEKDAY(JourCalendrier)=DébutSemaine,CONCATENATE(\"Semaine \",WEEKNUM(JourCalendrier),\"/Jour \",JourCalendrier-DATE(YEAR(JourCalendrier),1,0)),CONCATENATE(\"Jour \",JourCalendrier-DATE(YEAR(JourCalendrier),1,0)))","v":"Jour 336"},{"$f":"IF(WEEKDAY(JourCalendrier)=DébutSemaine,CONCATENATE(\"Semaine \",WEEKNUM(JourCalendrier),\"/Jour \",JourCalendrier-DATE(YEAR(JourCalendrier),1,0)),CONCATENATE(\"Jour \",JourCalendrier-DATE(YEAR(JourCalendrier),1,0)))","v":"Jour 337"}]

{"sheet":"DÉC.","index":11,"n_rows":20,"n_cols":9,"rows_kept":20,"merged":[[16,2,17,2],[17,4,19,8]]}
[null,"DÉC.",{"$f":"UPPER(TEXT(DébutSemaine,\"jjj\"))","v":"DIM"},{"$f":"UPPER(TEXT(D3,\"jjj\"))","v":"LUN"},"MAR","MER","JEU","VEN","SAM"]
[null,{"$f":"AnnéeCivile","v":2018}]
[null,null,{"$f":"JoursEtSemaines+DATE(AnnéeCivile,12,1)-WEEKDAY(DATE(AnnéeCivile,12,1),(DébutSemaine=\"LUN\")+1)+1","v":"2018-11-25"},"2018-11-26","2018-11-27","2018-11-28","2018-11-29","2018-11-30","2018-12-01"]
[null,null,{"$f":"IF(DAY(JourCalendrier)=1,CONCATENATE(\"Semaine \",WEEKNUM(JourCalendrier),\"/Jour \",JourCalendrier-DATE(YEAR(JourCalendrier),1,0)),CONCATENATE(\"Jour \",JourCalendrier-DATE(YEAR(JourCalendrier),1,0)))","v":"Jour 329"},{"$f":"IF(DAY(JourCalendrier)=1,CONCATENATE(\"Semaine \",WEEKNUM(JourCalendrier),\"/Jour \",JourCalendrier-DATE(YEAR(JourCalendrier),1,0)),CONCATENATE(\"Jour \",JourCalendrier-DATE(YEAR(JourCalendrier),1,0)))","v":"Jour 330"},{"$f":"IF(DAY(JourCalendrier)=1,CONCATENATE(\"Semaine \",WEEKNUM(JourCalendrier),\"/Jour \",JourCalendrier-DATE(YEAR(JourCalendrier),1,0)),CONCATENATE(\"Jour \",JourCalendrier-DATE(YEAR(JourCalendrier),1,0)))","v":"Jour 331"},{"$f":"IF(DAY(JourCalendrier)=1,CONCATENATE(\"Semaine \",WEEKNUM(JourCalendrier),\"/Jour \",JourCalendrier-DATE(YEAR(JourCalendrier),1,0)),CONCATENATE(\"Jour \",JourCalendrier-DATE(YEAR(JourCalendrier),1,0)))","v":"Jour 332"},{"$f":"IF(DAY(JourCalendrier)=1,CONCATENATE(\"Semaine \",WEEKNUM(JourCalendrier),\"/Jour \",JourCalendrier-DATE(YEAR(JourCalendrier),1,0)),CONCATENATE(\"Jour \",JourCalendrier-DATE(YEAR(JourCalendrier),1,0)))","v":"Jour 333"},{"$f":"IF(DAY(JourCalendrier)=1,CONCATENATE(\"Semaine \",WEEKNUM(JourCalendrier),\"/Jour \",JourCalendrier-DATE(YEAR(JourCalendrier),1,0)),CONCATENATE(\"Jour \",JourCalendrier-DATE(YEAR(JourCalendrier),1,0)))","v":"Jour 334"},{"$f":"IF(DAY(JourCalendrier)=1,CONCATENATE(\"Semaine \",WEEKNUM(JourCalendrier),\"/Jour \",JourCalendrier-DATE(YEAR(JourCalendrier),1,0)),CONCATENATE(\"Jour \",JourCalendrier-DATE(YEAR(JourCalendrier),1,0)))","v":"Semaine 48/Jour 335"}]
[]
[null,null,{"$f":"JoursEtSemaines+DATE(AnnéeCivile,12,1)-WEEKDAY(DATE(AnnéeCivile,12,1),(DébutSemaine=\"LUN\")+1)+8","v":"2018-12-02"},"2018-12-03","2018-12-04","2018-12-05","2018-12-06","2018-12-07","2018-12-08"]
[null,null,{"$f":"IF(WEEKDAY(JourCalendrier)=DébutSemaine,CONCATENATE(\"Semaine \",WEEKNUM(JourCalendrier),\"/Jour \",JourCalendrier-DATE(YEAR(JourCalendrier),1,0)),CONCATENATE(\"Jour \",JourCalendrier-DATE(YEAR(JourCalendrier),1,0)))","v":"Jour 336"},{"$f":"IF(WEEKDAY(JourCalendrier)=DébutSemaine,CONCATENATE(\"Semaine \",WEEKNUM(JourCalendrier),\"/Jour \",JourCalendrier-DATE(YEAR(JourCalendrier),1,0)),CONCATENATE(\"Jour \",JourCalendrier-DATE(YEAR(JourCalendrier),1,0)))","v":"Jour 337"},{"$f":"IF(WEEKDAY(JourCalendrier)=DébutSemaine,CONCATENATE(\"Semaine \",WEEKNUM(JourCalendrier),\"/Jour \",JourCalendrier-DATE(YEAR(JourCalendrier),1,0)),CONCATENATE(\"Jour \",JourCalendrier-DATE(YEAR(JourCalendrier),1,0)))","v":"Jour 338"},{"$f":"IF(WEEKDAY(JourCalendrier)=DébutSemaine,CONCATENATE(\"Semaine \",WEEKNUM(JourCalendrier),\"/Jour \",JourCalendrier-DATE(YEAR(JourCalendrier),1,0)),CONCATENATE(\"Jour \",JourCalendrier-DATE(YEAR(JourCalendrier),1,0)))","v":"Jour 339"},{"$f":"IF(WEEKDAY(JourCalendrier)=DébutSemaine,CONCATENATE(\"Semaine \",WEEKNUM(JourCalendrier),\"/Jour \",JourCalendrier-DATE(YEAR(JourCalendrier),1,0)),CONCATENATE(\"Jour \",JourCalendrier-DATE(YEAR(JourCalendrier),1,0)))","v":"Jour 340"},{"$f":"IF(WEEKDAY(JourCalendrier)=DébutSemaine,CONCATENATE(\"Semaine \",WEEKNUM(JourCalendrier),\"/Jour \",JourCalendrier-DATE(YEAR(JourCalendrier),1,0)),CONCATENATE(\"Jour \",JourCalendrier-DATE(YEAR(JourCalendrier),1,0)))","v":"Jour 341"},{"$f":"IF(WEEKDAY(JourCalendrier)=DébutSemaine,CONCATENATE(\"Semaine \",WEEKNUM(JourCalendrier),\"/Jour \",JourCalendrier-DATE(YEAR(JourCalendrier),1,0)),CONCATENATE(\"Jour \",JourCalendrier-DATE(YEAR(JourCalendrier),1,0)))","v":"Jour 342"}]
[]
[null,null,{"$f":"JoursEtSemaines+DATE(AnnéeCivile,12,1)-WEEKDAY(DATE(AnnéeCivile,12,1),(DébutSemaine=\"LUN\")+1)+15","v":"2018-12-09"},"2018-12-10","2018-12-11","2018-12-12","2018-12-13","2018-12-14","2018-12-15"]
[null,null,{"$f":"IF(WEEKDAY(JourCalendrier)=DébutSemaine,CONCATENATE(\"Semaine \",WEEKNUM(JourCalendrier),\"/Jour \",JourCalendrier-DATE(YEAR(JourCalendrier),1,0)),CONCATENATE(\"Jour \",JourCalendrier-DATE(YEAR(JourCalendrier),1,0)))","v":"Jour 343"},{"$f":"IF(WEEKDAY(JourCalendrier)=DébutSemaine,CONCATENATE(\"Semaine \",WEEKNUM(JourCalendrier),\"/Jour \",JourCalendrier-DATE(YEAR(JourCalendrier),1,0)),CONCATENATE(\"Jour \",JourCalendrier-DATE(YEAR(JourCalendrier),1,0)))","v":"Jour 344"},{"$f":"IF(WEEKDAY(JourCalendrier)=DébutSemaine,CONCATENATE(\"Semaine \",WEEKNUM(JourCalendrier),\"/Jour \",JourCalendrier-DATE(YEAR(JourCalendrier),1,0)),CONCATENATE(\"Jour \",JourCalendrier-DATE(YEAR(JourCalendrier),1,0)))","v":"Jour 345"},{"$f":"IF(WEEKDAY(JourCalendrier)=DébutSemaine,CONCATENATE(\"Semaine \",WEEKNUM(JourCalendrier),\"/Jour \",JourCalendrier-DATE(YEAR(JourCalendrier),1,0)),CONCATENATE(\"Jour \",JourCalendrier-DATE(YEAR(JourCalendrier),1,0)))","v":"Jour 346"},{"$f":"IF(WEEKDAY(JourCalendrier)=DébutSemaine,CONCATENATE(\"Semaine \",WEEKNUM(JourCalendrier),\"/Jour \",JourCalendrier-DATE(YEAR(JourCalendrier),1,0)),CONCATENATE(\"Jour \",JourCalendrier-DATE(YEAR(JourCalendrier),1,0)))","v":"Jour 347"},{"$f":"IF(WEEKDAY(JourCalendrier)=DébutSemaine,CONCATENATE(\"Semaine \",WEEKNUM(JourCalendrier),\"/Jour \",JourCalendrier-DATE(YEAR(JourCalendrier),1,0)),CONCATENATE(\"Jour \",JourCalendrier-DATE(YEAR(JourCalendrier),1,0)))","v":"Jour 348"},{"$f":"IF(WEEKDAY(JourCalendrier)=DébutSemaine,CONCATENATE(\"Semaine \",WEEKNUM(JourCalendrier),\"/Jour \",JourCalendrier-DATE(YEAR(JourCalendrier),1,0)),CONCATENATE(\"Jour \",JourCalendrier-DATE(YEAR(JourCalendrier),1,0)))","v":"Jour 349"}]
[]
[null,null,{"$f":"JoursEtSemaines+DATE(AnnéeCivile,12,1)-WEEKDAY(DATE(AnnéeCivile,12,1),(DébutSemaine=\"LUN\")+1)+22","v":"2018-12-16"},"2018-12-17","2018-12-18","2018-12-19","2018-12-20","2018-12-21","2018-12-22"]
[null,null,{"$f":"IF(WEEKDAY(JourCalendrier)=DébutSemaine,CONCATENATE(\"Semaine \",WEEKNUM(JourCalendrier),\"/Jour \",JourCalendrier-DATE(YEAR(JourCalendrier),1,0)),CONCATENATE(\"Jour \",JourCalendrier-DATE(YEAR(JourCalendrier),1,0)))","v":"Jour 350"},{"$f":"IF(WEEKDAY(JourCalendrier)=DébutSemaine,CONCATENATE(\"Semaine \",WEEKNUM(JourCalendrier),\"/Jour \",JourCalendrier-DATE(YEAR(JourCalendrier),1,0)),CONCATENATE(\"Jour \",JourCalendrier-DATE(YEAR(JourCalendrier),1,0)))","v":"Jour 351"},{"$f":"IF(WEEKDAY(JourCalendrier)=DébutSemaine,CONCATENATE(\"Semaine \",WEEKNUM(JourCalendrier),\"/Jour \",JourCalendrier-DATE(YEAR(JourCalendrier),1,0)),CONCATENATE(\"Jour \",JourCalendrier-DATE(YEAR(JourCalendrier),1,0)))","v":"Jour 352"},{"$f":"IF(WEEKDAY(JourCalendrier)=DébutSemaine,CONCATENATE(\"Semaine \",WEEKNUM(JourCalendrier),\"/Jour \",JourCalendrier-DATE(YEAR(JourCalendrier),1,0)),CONCATENATE(\"Jour \",JourCalendrier-DATE(YEAR(JourCalendrier),1,0)))","v":"Jour 353"},{"$f":"IF(WEEKDAY(JourCalendrier)=DébutSemaine,CONCATENATE(\"Semaine \",WEEKNUM(JourCalendrier),\"/Jour \",JourCalendrier-DATE(YEAR(JourCalendrier),1,0)),CONCATENATE(\"Jour \",JourCalendrier-DATE(YEAR(JourCalendrier),1,0)))","v":"Jour 354"},{"$f":"IF(WEEKDAY(JourCalendrier)=DébutSemaine,CONCATENATE(\"Semaine \",WEEKNUM(JourCalendrier),\"/Jour \",JourCalendrier-DATE(YEAR(JourCalendrier),1,0)),CONCATENATE(\"Jour \",JourCalendrier-DATE(YEAR(JourCalendrier),1,0)))","v":"Jour 355"},{"$f":"IF(WEEKDAY(JourCalendrier)=DébutSemaine,CONCATENATE(\"Semaine \",WEEKNUM(JourCalendrier),\"/Jour \",JourCalendrier-DATE(YEAR(JourCalendrier),1,0)),CONCATENATE(\"Jour \",JourCalendrier-DATE(YEAR(JourCalendrier),1,0)))","v":"Jour 356"}]
[]
[null,null,{"$f":"JoursEtSemaines+DATE(AnnéeCivile,12,1)-WEEKDAY(DATE(AnnéeCivile,12,1),(DébutSemaine=\"LUN\")+1)+29","v":"2018-12-23"},"2018-12-24","2018-12-25","2018-12-26","2018-12-27","2018-12-28","2018-12-29"]
[null,null,{"$f":"IF(WEEKDAY(JourCalendrier)=DébutSemaine,CONCATENATE(\"Semaine \",WEEKNUM(JourCalendrier),\"/Jour \",JourCalendrier-DATE(YEAR(JourCalendrier),1,0)),CONCATENATE(\"Jour \",JourCalendrier-DATE(YEAR(JourCalendrier),1,0)))","v":"Jour 357"},{"$f":"IF(WEEKDAY(JourCalendrier)=DébutSemaine,CONCATENATE(\"Semaine \",WEEKNUM(JourCalendrier),\"/Jour \",JourCalendrier-DATE(YEAR(JourCalendrier),1,0)),CONCATENATE(\"Jour \",JourCalendrier-DATE(YEAR(JourCalendrier),1,0)))","v":"Jour 358"},{"$f":"IF(WEEKDAY(JourCalendrier)=DébutSemaine,CONCATENATE(\"Semaine \",WEEKNUM(JourCalendrier),\"/Jour \",JourCalendrier-DATE(YEAR(JourCalendrier),1,0)),CONCATENATE(\"Jour \",JourCalendrier-DATE(YEAR(JourCalendrier),1,0)))","v":"Jour 359"},{"$f":"IF(WEEKDAY(JourCalendrier)=DébutSemaine,CONCATENATE(\"Semaine \",WEEKNUM(JourCalendrier),\"/Jour \",JourCalendrier-DATE(YEAR(JourCalendrier),1,0)),CONCATENATE(\"Jour \",JourCalendrier-DATE(YEAR(JourCalendrier),1,0)))","v":"Jour 360"},{"$f":"IF(WEEKDAY(JourCalendrier)=DébutSemaine,CONCATENATE(\"Semaine \",WEEKNUM(JourCalendrier),\"/Jour \",JourCalendrier-DATE(YEAR(JourCalendrier),1,0)),CONCATENATE(\"Jour \",JourCalendrier-DATE(YEAR(JourCalendrier),1,0)))","v":"Jour 361"},{"$f":"IF(WEEKDAY(JourCalendrier)=DébutSemaine,CONCATENATE(\"Semaine \",WEEKNUM(JourCalendrier),\"/Jour \",JourCalendrier-DATE(YEAR(JourCalendrier),1,0)),CONCATENATE(\"Jour \",JourCalendrier-DATE(YEAR(JourCalendrier),1,0)))","v":"Jour 362"},{"$f":"IF(WEEKDAY(JourCalendrier)=DébutSemaine,CONCATENATE(\"Semaine \",WEEKNUM(JourCalendrier),\"/Jour \",JourCalendrier-DATE(YEAR(JourCalendrier),1,0)),CONCATENATE(\"Jour \",JourCalendrier-DATE(YEAR(JourCalendrier),1,0)))","v":"Jour 363"}]
[{"$nulls":4},"NOTES"]
[]
[null,null,{"$f":"JoursEtSemaines+DATE(AnnéeCivile,12,1)-WEEKDAY(DATE(AnnéeCivile,12,1),(DébutSemaine=\"LUN\")+1)+36","v":"2018-12-30"},"2018-12-31"]
[null,null,{"$f":"IF(WEEKDAY(JourCalendrier)=DébutSemaine,CONCATENATE(\"Semaine \",WEEKNUM(JourCalendrier),\"/Jour \",JourCalendrier-DATE(YEAR(JourCalendrier),1,0)),CONCATENATE(\"Jour \",JourCalendrier-DATE(YEAR(JourCalendrier),1,0)))","v":"Jour 364"},{"$f":"IF(WEEKDAY(JourCalendrier)=DébutSemaine,CONCATENATE(\"Semaine \",WEEKNUM(JourCalendrier),\"/Jour \",JourCalendrier-DATE(YEAR(JourCalendrier),1,0)),CONCATENATE(\"Jour \",JourCalendrier-DATE(YEAR(JourCalendrier),1,0)))","v":"Jour 365"}]